{"text_format":"1","workbook":"xlsx","n_sheets":10,"sheets":["Table of Contents","Instructions","Data","Overall Charts A","Overall Charts B","Breakdown Charts A","Breakdown Charts B","Breakdown Charts C","Breakdown Charts D","Data.Calculations"],"not_rendered":{"charts":39,"images":6,"macros":1,"external_links":0,"defined_names":1,"comments":0,"pivot_tables":0},"unopened":[],"bounds":{"document_bytes":16777216,"sheet_cells":100000,"rows_first":2000,"rows_last":500,"rows_between":2000,"halvings":0,"cell_chars":16384,"cell_head_chars":4096},"cells_cut":0,"cells_raw":0,"read":"whole","date_system":"1900"}

{"sheet":"Table of Contents","index":0,"n_rows":18,"n_cols":1,"rows_kept":18,"cut":false,"hidden":false,"merged":[]}
["Introduction"]
["The purpose of this Excel Workbook is to provide PEAs with a tool to analyze Post School Outcomes (PSO) data."]
["Table of Contents"]
["Tabs & Definitions"]
["Instructions Tab\nSteps for using the PEA PSO Data Analysis Template."]
["Data Tab\nSection of the workbook where PSO data is pasted. The Data Tab is the only tab in this workbook that is recommended to be modified."]
["Overall Charts\nCharts displaying the following PSO data for all respondents:\n• Overall Charts A: Indicator 14 measurements, categories of engagement, and response rate/representativeness.  \n• Overall Charts B: Engagement rates by demographic categories."]
["Breakdown Charts\nCharts displaying the engagement rates for each demographic category of respondents. Total number of respondents for each category is displayed in the title of each chart.\n• Breakdown Charts A: Gender and Exit Data\n• Breakdown Charts B: Race/ethnicity\n• Breakdown Charts C: Disability categories reported for Indicator 14 \n• Breakdown Charts D: All disability categories"]
["Please note, this template is designed to work with Microsoft Excel files only. Similar programs, like Apple Numbers, may impact data analysis accuracy.\n\nData analysis accuracy could also be affected if any adjustment occurs in the Excel Workbook other than pasting data into the Data tab."]
["Post School Outcomes Resources"]
["Visit the Post School Outcomes Padlet to find the PSO Survey questions, recorded webinars, FAQs, and other technical assistance resources."]
["For additional resources, visit our PSO Page."]
["Contact Information"]
["ADE/ESS Secondary Transition Team"]
["Email: PSO Inbox"]
["Phone: 602.542.2817"]
["Website: Secondary Transition Page "]
["Revision Date: 12/1/2020"]

{"sheet":"Instructions","index":1,"n_rows":129,"n_cols":1,"rows_kept":129,"cut":false,"hidden":false,"merged":[]}
["INSTRUCTIONS"]
["Step 1\nWithin the PSO Application, hover your cursor over \"Reports\" and select \"PSO Data Viewer.\" "]
[]
[]
[]
[]
[]
[]
[]
[]
[]
[]
[]
[]
[]
[]
[]
[]
[]
[]
[]
[]
["Step 2\nSelect the Exit Year from the dropdown menu and click \"Run Report.\" You are able to narrow your results to a specific campus within a district and to a specific student within a PEA or campus. "]
[]
[]
[]
[]
[]
[]
[]
[]
[]
[]
[]
[]
[]
[]
[]
[]
[]
[]
[]
[]
["Step 3\nAfter the report is generated select the \"Save\" icon and choose \"CSV (comma delimited).\""]
[]
[]
[]
[]
[]
[]
[]
[]
[]
[]
[]
[]
[]
[]
[]
[]
[]
[]
[]
[]
["Step 4\nOpen the downloaded DataViewer.csv file in Microsoft Excel. Click on the triangle between Column A and Row 1 to highlight all cells. Please note, if you are using Apple Numbers, some information will not transfer accurately when completing Step 5."]
["Step 5\nAfter all the cells are highlighted, right-click on the triangle and select Copy. You can also press \"Ctrl + C\" on your keyboard."]
[]
[]
[]
[]
[]
[]
[]
[]
[]
[]
[]
[]
[]
[]
[]
[]
[]
[]
[]
[]
["Step 6\nIn the \"PEA PSO Data Analysis Template\"  Excel file, go to the Data tab. Select the triangle and right-click and then select the paste icon (or press \"Ctrl + V\")."]
[]
[]
[]
[]
[]
[]
[]
[]
[]
[]
[]
[]
[]
[]
[]
[]
[]
[]
[]
[]
["Step 7\nAfter pasting the data, charts found on the other tabs will automatically generate. At this point, it is recommended that you choose Save As to save a copy of your file."]
[]
[]
[]
[]
[]
[]
[]
[]
[]
[]
[]
[]
[]
[]
[]
[]
[]
[]
["Step 8 - These charts can be copied into other platforms such as PowerPoint, Google Slides, and Microsoft Word, for example."]
["Completed"]
["end of worksheet"]

{"sheet":"Data","index":2,"n_rows":0,"n_cols":0,"rows_kept":0,"cut":false,"hidden":false,"merged":[]}

{"sheet":"Overall Charts A","index":3,"n_rows":93,"n_cols":10,"rows_kept":93,"cut":false,"hidden":false,"merged":[]}
["Overall Charts A: Indicator 14 Measurements, Categories of Engagement, and Response Rate/Representativeness"]
[]
[]
[]
[]
[]
[]
[]
[]
[]
[]
[]
[]
[]
[]
[]
[]
[]
[]
[]
[]
[]
[]
[]
[]
[]
[]
[]
[]
[]
[]
[]
[]
[]
[]
[]
[]
[]
[]
[]
[]
[]
[]
[]
[]
[]
[]
[]
[]
[]
[]
[]
[]
[]
[]
[]
[]
[]
[]
[]
[]
[]
[]
[]
[]
[]
[]
[]
[]
[]
[]
[]
[]
[]
[]
[]
[]
[]
[]
[]
["Arizona PSO for 18-19 Exiters Response Rate by Demographic "]
["no data","Overall","no data","Disability","Category","no data","Gender","Ethnicity","LEP","Exit"]
["no data","no data","LD","ED","ID","AO","Female","Minority","no data","Dropout"]
["Target Leaver Totals",{"$f":"Data.Calculations!C4","v":0},{"$f":"COUNTIFS(Data!$Z:$Z,C83,Data!$G:$G,\"Required\",Data!$AO:$AO,\"False\")","v":0},{"$f":"COUNTIFS(Data!$Z:$Z,D83,Data!$G:$G,\"Required\",Data!$AO:$AO,\"False\")","v":0},{"$f":"COUNTIFS(Data!$Z:$Z,E83,Data!$G:$G,\"Required\",Data!$AO:$AO,\"False\")","v":0},{"$f":"COUNTIFS(Data!$Z:$Z,F83,Data!$G:$G,\"Required\",Data!$AO:$AO,\"False\")","v":0},{"$f":"COUNTIFS(Data!$AD:$AD,G83,Data!$G:$G,\"Required\",Data!$AO:$AO,\"False\")","v":0},{"$f":"COUNTIFS(Data!$AE:$AE,\"as\",Data!$G:$G,\"Required\",Data!$AO:$AO,\"False\")+COUNTIFS(Data!$AE:$AE,\"am\",Data!$G:$G,\"Required\",Data!$AO:$AO,\"False\")+COUNTIFS(Data!$AE:$AE,\"bl\",Data!$G:$G,\"Required\",Data!$AO:$AO,\"False\")+COUNTIFS(Data!$AE:$AE,\"mu\",Data!$G:$G,\"Required\",Data!$AO:$AO,\"False\")+COUNTIFS(Data!$AE:$AE,\"pi\",Data!$G:$G,\"Required\",Data!$AO:$AO,\"False\")","v":0},{"$f":"COUNTIFS(Data!$AH:$AH,\"true\",Data!$G:$G,\"Required\",Data!$AO:$AO,\"False\")","v":0},{"$f":"COUNTIFS(Data!$AK:$AK,\"Dropped Out\",Data!$G:$G,\"Required\",Data!$AO:$AO,\"False\")","v":0}]
["Response Totals",{"$f":"SUM(Data.Calculations!C2:C3)","v":0},{"$f":"Data.Calculations!O5","v":0},{"$f":"Data.Calculations!O3","v":0},{"$f":"Data.Calculations!O4","v":0},{"$f":"Data.Calculations!O2","v":0},{"$f":"Data.Calculations!G2","v":0},{"$f":"SUM(Data.Calculations!S2,Data.Calculations!S3,Data.Calculations!S4,Data.Calculations!S6,Data.Calculations!S7)","v":0},{"$f":"COUNTIFS(Data!$AH$2:$AH$886802,\"true\",Data!$AN$2:$AN$886802,\"true\")","v":0},{"$f":"Data.Calculations!K3","v":0}]
["Response Rate",{"$f":"IFERROR(B85/B84,\"\")","v":""},"","","","","","","",{"$f":"IFERROR(J85/J84,\"\")","v":""}]
[]
["Arizona PSO for 18-19 Exiters Representativeness by Demographics"]
["no data","no data","Disability","Category","no data","Gender","Ethnicity","LEP","Exit"]
["no data","LD","ED","ID","AO","Female","Minority","no data","Dropout"]
["Target Leaver Representation",{"$f":"'Overall Charts A'!C84/'Overall Charts A'!$B$84","v":{"$error":"#DIV/0!"}},{"$f":"'Overall Charts A'!D84/'Overall Charts A'!$B$84","v":{"$error":"#DIV/0!"}},{"$f":"'Overall Charts A'!E84/'Overall Charts A'!$B$84","v":{"$error":"#DIV/0!"}},{"$f":"'Overall Charts A'!F84/'Overall Charts A'!$B$84","v":{"$error":"#DIV/0!"}},{"$f":"'Overall Charts A'!G84/'Overall Charts A'!$B$84","v":{"$error":"#DIV/0!"}},{"$f":"'Overall Charts A'!H84/'Overall Charts A'!$B$84","v":{"$error":"#DIV/0!"}},{"$f":"'Overall Charts A'!I84/'Overall Charts A'!$B$84","v":{"$error":"#DIV/0!"}},{"$f":"'Overall Charts A'!J84/'Overall Charts A'!$B$84","v":{"$error":"#DIV/0!"}}]
["Respondent Representation",{"$f":"'Overall Charts A'!C85/'Overall Charts A'!$B$85","v":{"$error":"#DIV/0!"}},{"$f":"'Overall Charts A'!D85/'Overall Charts A'!$B$85","v":{"$error":"#DIV/0!"}},{"$f":"'Overall Charts A'!E85/'Overall Charts A'!$B$85","v":{"$error":"#DIV/0!"}},{"$f":"'Overall Charts A'!F85/'Overall Charts A'!$B$85","v":{"$error":"#DIV/0!"}},{"$f":"'Overall Charts A'!G85/'Overall Charts A'!$B$85","v":{"$error":"#DIV/0!"}},{"$f":"'Overall Charts A'!H85/'Overall Charts A'!$B$85","v":{"$error":"#DIV/0!"}},{"$f":"'Overall Charts A'!I85/'Overall Charts A'!$B$85","v":{"$error":"#DIV/0!"}},{"$f":"'Overall Charts A'!J85/'Overall Charts A'!$B$85","v":{"$error":"#DIV/0!"}}]
["Difference",{"$f":"'Overall Charts A'!B92-'Overall Charts A'!B91","v":{"$error":"#DIV/0!"}},{"$f":"'Overall Charts A'!C92-'Overall Charts A'!C91","v":{"$error":"#DIV/0!"}},{"$f":"'Overall Charts A'!D92-'Overall Charts A'!D91","v":{"$error":"#DIV/0!"}},{"$f":"'Overall Charts A'!E92-'Overall Charts A'!E91","v":{"$error":"#DIV/0!"}},{"$f":"'Overall Charts A'!F92-'Overall Charts A'!F91","v":{"$error":"#DIV/0!"}},{"$f":"'Overall Charts A'!G92-'Overall Charts A'!G91","v":{"$error":"#DIV/0!"}},{"$f":"'Overall Charts A'!H92-'Overall Charts A'!H91","v":{"$error":"#DIV/0!"}},{"$f":"'Overall Charts A'!I92-'Overall Charts A'!I91","v":{"$error":"#DIV/0!"}}]

{"sheet":"Overall Charts B","index":4,"n_rows":1,"n_cols":7,"rows_kept":1,"cut":false,"hidden":false,"merged":[]}
[null,null,null,null,null,null,"Overall Charts B: Engagement Rates by Demographics Categories"]

{"sheet":"Breakdown Charts A","index":5,"n_rows":1,"n_cols":7,"rows_kept":1,"cut":false,"hidden":false,"merged":[]}
[null,null,null,null,null,null,"Breakdown Charts A: Gender and Exit Data"]

{"sheet":"Breakdown Charts B","index":6,"n_rows":1,"n_cols":7,"rows_kept":1,"cut":false,"hidden":false,"merged":[]}
[null,null,null,null,null,null,"Breakdown Charts B: Race/Ethnicity"]

{"sheet":"Breakdown Charts C","index":7,"n_rows":1,"n_cols":7,"rows_kept":1,"cut":false,"hidden":false,"merged":[]}
[null,null,null,null,null,null,"Breakdown Charts C: Disability Categories Reported for Indicator 14"]

{"sheet":"Breakdown Charts D","index":8,"n_rows":1,"n_cols":7,"rows_kept":1,"cut":false,"hidden":false,"merged":[]}
[null,null,null,null,null,null,"Breakdown Charts D: All Disability Categories"]

{"sheet":"Data.Calculations","index":9,"n_rows":106,"n_cols":34,"rows_kept":106,"cut":false,"hidden":true,"merged":[]}
["Key",null,"n",null,"%",null,"n","% (N/A)","%",null,"n","% (N/A)","%",null,"n","% (N/A)","%",null,"n","% (N/A)","%",null,"n","% (N/A)","%",null,"Total","Engaged","Not Engaged","Engaged %","Not Engaged %","Female","American Indian or Alaskan Native","Autism"]
["Required","Engaged",{"$f":"COUNTIFS(Data!G:G,A2,Data!AO:AO,A6,Data!AU:AU,A4)","v":0},null,null,{"$f":"A13&\" (\"&G2&\")\"","v":"Female (0)"},{"$f":"COUNTIFS(Data!G:G,A2,Data!AO:AO,A6,Data!AD:AD,A13,Data!AU:AU,A4)+COUNTIFS(Data!G:G,A2,Data!AO:AO,A6,Data!AD:AD,A13,Data!AU:AU,A12)","v":0},{"$f":"IF(G2/$C$4=0,#N/A,G2/$C$4)","v":{"$error":"#DIV/0!"}},{"$f":"IFERROR(G2/C4,\"0\")","v":"0"},{"$f":"\"Aged Out \"&\" (\"&K2&\")\"","v":"Aged Out  (0)"},{"$f":"COUNTIFS(Data!G:G,A2,Data!AO:AO,A6,Data!AK:AK,A19,Data!AU:AU,A4)+COUNTIFS(Data!G:G,A2,Data!AO:AO,A6,Data!AK:AK,A19,Data!AU:AU,A12)","v":0},{"$f":"IFERROR(K2/$C$5,#N/A)","v":{"$error":"#N/A"}},{"$f":"IFERROR(K2/$C$5,#N/A)","v":{"$error":"#N/A"}},{"$f":"A15&\" (\"&O2&\")\"","v":"All Other Disabilities (0)"},{"$f":"COUNTIFS(Data!G:G,A2,Data!AO:AO,A6,Data!AA:AA,A15,Data!AU:AU,A4)+COUNTIFS(Data!G:G,A2,Data!AO:AO,A6,Data!AA:AA,A15,Data!AU:AU,A12)","v":0},{"$f":"IFERROR(O2/$C$5,#N/A)","v":{"$error":"#N/A"}},{"$f":"IFERROR(O2/$C$5,#N/A)","v":{"$error":"#N/A"}},{"$f":"A22&\" (\"&S2&\")\"","v":"American Indian or Alaskan Native (0)"},{"$f":"COUNTIFS(Data!G:G,A2,Data!AO:AO,A6,Data!AF:AF,A22,Data!AU:AU,A4)+COUNTIFS(Data!G:G,A2,Data!AO:AO,A6,Data!AF:AF,A22,Data!AU:AU,A12)","v":0},{"$f":"IFERROR(S2/$C$5,#N/A)","v":{"$error":"#N/A"}},{"$f":"IFERROR(S2/$C$5,#N/A)","v":{"$error":"#N/A"}},{"$f":"A29&\" (\"&W2&\")\"","v":"Autism (0)"},{"$f":"COUNTIFS(Data!G:G,A2,Data!AO:AO,A6,Data!Y:Y,A29,Data!AU:AU,A4)+COUNTIFS(Data!G:G,A2,Data!AO:AO,A6,Data!Y:Y,A29,Data!AU:AU,A12)","v":0},{"$f":"IFERROR(W2/$C$5,#N/A)","v":{"$error":"#N/A"}},{"$f":"IFERROR(W2/$C$5,#N/A)","v":{"$error":"#N/A"}},{"$f":"A29&\" (\"&AA2&\")\"","v":"Autism (0)"},{"$f":"COUNTIFS(Data!$Y:$Y,A29,Data!$AU:$AU,\"C\")+COUNTIFS(Data!$Y:$Y,A29,Data!$AU:$AU,\"not engaged\")","v":0},{"$f":"IFERROR(COUNTIFS(Data!$AU:$AU,\"C\",Data!$Y:$Y,A29),\"0.0%\")","v":0},{"$f":"IFERROR(COUNTIFS(Data!$AU:$AU,\"Not Engaged\",Data!$Y:$Y,A29),\"0.0%\")","v":0},{"$f":"IFERROR(AB2/AA2,#N/A)","v":{"$error":"#N/A"}},{"$f":"IFERROR(AC2/AA2,#N/A)","v":{"$error":"#N/A"}},{"$f":"$A$78&\"\" &\" (\"&G5&\")\"","v":"Higher Education (0)"},{"$f":"$A$78&\"\" &\" (\"&S10&\")\"","v":"Higher Education (0)"},{"$f":"$A$78&\"\" &\" (\"&W18&\")\"","v":"Higher Education (0)"}]
["Not Required","Not Engaged",{"$f":"COUNTIFS(Data!G:G,A2,Data!AO:AO,A6,Data!AU:AU,A12)","v":0},null,null,{"$f":"A14&\" (\"&G3&\")\"","v":"Male (0)"},{"$f":"COUNTIFS(Data!G:G,A2,Data!AO:AO,A6,Data!AD:AD,A14,Data!AU:AU,A4)+COUNTIFS(Data!G:G,A2,Data!AO:AO,A6,Data!AD:AD,A14,Data!AU:AU,A12)","v":0},{"$f":"IF(G3/$C$4=0,#N/A,G3/$C$4)","v":{"$error":"#DIV/0!"}},{"$f":"IFERROR(G3/C4,\"0\")","v":"0"},{"$f":"A20&\" (\"&K3&\")\"","v":"Dropped Out (0)"},{"$f":"COUNTIFS(Data!G:G,A2,Data!AO:AO,A6,Data!AK:AK,A20,Data!AU:AU,A4)+COUNTIFS(Data!G:G,A2,Data!AO:AO,A6,Data!AK:AK,A20,Data!AU:AU,A12)","v":0},{"$f":"IFERROR(K3/$C$5,#N/A)","v":{"$error":"#N/A"}},{"$f":"IFERROR(K3/$C$5,#N/A)","v":{"$error":"#N/A"}},{"$f":"A16&\" (\"&O3&\")\"","v":"Emotional Disturbance (0)"},{"$f":"COUNTIFS(Data!G:G,A2,Data!AO:AO,A6,Data!AA:AA,A16,Data!AU:AU,A4)+COUNTIFS(Data!G:G,A2,Data!AO:AO,A6,Data!AA:AA,A16,Data!AU:AU,A12)","v":0},{"$f":"IFERROR(O3/$C$5,#N/A)","v":{"$error":"#N/A"}},{"$f":"IFERROR(O3/$C$5,#N/A)","v":{"$error":"#N/A"}},"Asian (0)",{"$f":"COUNTIFS(Data!G:G,A2,Data!AO:AO,A6,Data!AF:AF,A23,Data!AU:AU,A4)+COUNTIFS(Data!G:G,A2,Data!AO:AO,A6,Data!AF:AF,A23,Data!AU:AU,A12)","v":0},{"$f":"IFERROR(S3/$C$5,#N/A)","v":{"$error":"#N/A"}},{"$f":"IFERROR(S3/$C$5,#N/A)","v":{"$error":"#N/A"}},"Emotional Disability (0)",{"$f":"COUNTIFS(Data!G:G,A2,Data!AO:AO,A6,Data!Y:Y,A30,Data!AU:AU,A4)+COUNTIFS(Data!G:G,A2,Data!AO:AO,A6,Data!Y:Y,A30,Data!AU:AU,A12)","v":0},{"$f":"IFERROR(W3/$C$5,#N/A)","v":{"$error":"#N/A"}},{"$f":"IFERROR(W3/$C$5,#N/A)","v":{"$error":"#N/A"}},"Emotional Disability (0)",{"$f":"COUNTIFS(Data!$Y:$Y,A30,Data!$AU:$AU,\"C\")+COUNTIFS(Data!$Y:$Y,A30,Data!$AU:$AU,\"not engaged\")","v":0},{"$f":"IFERROR(COUNTIFS(Data!$AU:$AU,\"C\",Data!$Y:$Y,A30),\"0.0%\")","v":0},{"$f":"IFERROR(COUNTIFS(Data!$AU:$AU,\"Not Engaged\",Data!$Y:$Y,A30),\"0.0%\")","v":0},{"$f":"IFERROR(AB3/AA3,#N/A)","v":{"$error":"#N/A"}},{"$f":"IFERROR(AC3/AA3,#N/A)","v":{"$error":"#N/A"}},{"$f":"$B$8&\"\" &\" (\"&G6&\")\"","v":"Competitive Employment (0)"},{"$f":"$B$8&\"\" &\" (\"&S11&\")\"","v":"Competitive Employment (0)"},{"$f":"$B$8&\"\" &\" (\"&W19&\")\"","v":"Competitive Employment (0)"}]
["C","Eligible",{"$f":"COUNTIFS(Data!G:G,A2,Data!AO:AO,A6)","v":0},null,null,null,null,null,null,{"$f":"A21&\" (\"&K4&\")\"","v":"Graduated (0)"},{"$f":"COUNTIFS(Data!G:G,A2,Data!AO:AO,A6,Data!AK:AK,A21,Data!AU:AU,A4)+COUNTIFS(Data!G:G,A2,Data!AO:AO,A6,Data!AK:AK,A21,Data!AU:AU,A12)","v":0},{"$error":"#N/A"},{"$error":"#N/A"},{"$f":"A17&\" (\"&O4&\")\"","v":"Intellectual Disability (0)"},{"$f":"COUNTIFS(Data!G:G,A2,Data!AO:AO,A6,Data!AA:AA,A17,Data!AU:AU,A4)+COUNTIFS(Data!G:G,A2,Data!AO:AO,A6,Data!AA:AA,A17,Data!AU:AU,A12)","v":0},{"$error":"#N/A"},{"$error":"#N/A"},"Black or African American (0)",{"$f":"COUNTIFS(Data!G:G,A2,Data!AO:AO,A6,Data!AF:AF,A24,Data!AU:AU,A4)+COUNTIFS(Data!G:G,A2,Data!AO:AO,A6,Data!AF:AF,A24,Data!AU:AU,A12)","v":0},{"$error":"#N/A"},{"$error":"#N/A"},"Emotional Disability (separate facility, private school) (0)",{"$f":"COUNTIFS(Data!G:G,A2,Data!AO:AO,A6,Data!Y:Y,A31,Data!AU:AU,A4)+COUNTIFS(Data!G:G,A2,Data!AO:AO,A6,Data!Y:Y,A31,Data!AU:AU,A12)","v":0},{"$error":"#N/A"},{"$error":"#N/A"},"Emotional Disability (separate facility, private school) (0)",{"$f":"COUNTIFS(Data!$Y:$Y,A31,Data!$AU:$AU,\"C\")+COUNTIFS(Data!$Y:$Y,A31,Data!$AU:$AU,\"not engaged\")","v":0},{"$f":"IFERROR(COUNTIFS(Data!$AU:$AU,\"C\",Data!$Y:$Y,A31),\"0.0%\")","v":0},{"$f":"IFERROR(COUNTIFS(Data!$AU:$AU,\"Not Engaged\",Data!$Y:$Y,A31),\"0.0%\")","v":0},{"$error":"#N/A"},{"$error":"#N/A"},{"$f":"$A$80&\"\" &\" (\"&G7&\")\"","v":"Other Postsecondary Education or Training (0)"},{"$f":"$A$80&\"\" &\" (\"&S12&\")\"","v":"Other Postsecondary Education or Training (0)"},{"$f":"$A$80&\"\" &\" (\"&W20&\")\"","v":"Other Postsecondary Education or Training (0)"}]
["TRUE","Respondents",{"$f":"C2+C3","v":0},null,{"$f":"IFERROR(C5/C4,#N/A)","v":{"$error":"#N/A"}},{"$f":"$A$13&\" (\"&G5&\")\"","v":"Female (0)"},{"$f":"IFERROR(COUNTIFS(Data!G2:G1000000,A2,Data!AO2:AO1000000,A6,Data!AT2:AT1000000,A8,Data!AD2:AD1000000,A13),\"0\")","v":0},{"$f":"IF(G5/$G$2=0,#N/A,G5/$G$2)","v":{"$error":"#DIV/0!"}},{"$f":"IFERROR(G5/G2,\"0\")","v":"0"},null,null,{"$error":"#N/A"},{"$error":"#N/A"},{"$f":"A18&\" (\"&O5&\")\"","v":"Specific Learning Disability (0)"},{"$f":"COUNTIFS(Data!G:G,A2,Data!AO:AO,A6,Data!AA:AA,A18,Data!AU:AU,A4)+COUNTIFS(Data!G:G,A2,Data!AO:AO,A6,Data!AA:AA,A18,Data!AU:AU,A12)","v":0},{"$error":"#N/A"},{"$error":"#N/A"},"Hispanic or Latino (0)",{"$f":"COUNTIFS(Data!G:G,A2,Data!AO:AO,A6,Data!AF:AF,A25,Data!AU:AU,A4)+COUNTIFS(Data!G:G,A2,Data!AO:AO,A6,Data!AF:AF,A25,Data!AU:AU,A12)","v":0},{"$error":"#N/A"},{"$error":"#N/A"},"Hearing Impairment (0)",{"$f":"COUNTIFS(Data!G:G,A2,Data!AO:AO,A6,Data!Y:Y,A32,Data!AU:AU,A4)+COUNTIFS(Data!G:G,A2,Data!AO:AO,A6,Data!Y:Y,A32,Data!AU:AU,A12)","v":0},{"$error":"#N/A"},{"$error":"#N/A"},"Hearing Impairment (0)",{"$f":"COUNTIFS(Data!$Y:$Y,A32,Data!$AU:$AU,\"C\")+COUNTIFS(Data!$Y:$Y,A32,Data!$AU:$AU,\"not engaged\")","v":0},{"$f":"IFERROR(COUNTIFS(Data!$AU:$AU,\"C\",Data!$Y:$Y,A32),\"0.0%\")","v":0},{"$f":"IFERROR(COUNTIFS(Data!$AU:$AU,\"Not Engaged\",Data!$Y:$Y,A32),\"0.0%\")","v":0},{"$error":"#N/A"},{"$error":"#N/A"},{"$f":"$A$81&\"\" &\" (\"&G8&\")\"","v":"Other Employment (0)"},{"$f":"$A$81&\"\" &\" (\"&S13&\")\"","v":"Other Employment (0)"},{"$f":"$A$81&\"\" &\" (\"&W21&\")\"","v":"Other Employment (0)"}]
[false,null,null,null,null,{"$f":"$A$13&\" (\"&G6&\")\"","v":"Female (0)"},{"$f":"IFERROR(COUNTIFS(Data!G2:G1000000,A2,Data!AO2:AO1000000,A6,Data!AT2:AT1000000,A9,Data!AD2:AD1000000,A13),\"0\")","v":0},{"$f":"IF(G6/$G$2=0,#N/A,G6/$G$2)","v":{"$error":"#DIV/0!"}},{"$f":"IFERROR(G6/G2,\"0\")","v":"0"},{"$f":"\"Aged Out \"&\" (\"&K6&\")\"","v":"Aged Out  (0)"},{"$f":"IFERROR(COUNTIFS(Data!G2:G1000000,A2,Data!AO2:AO1000000,A6,Data!AT2:AT1000000,A8,Data!AK2:AK1000000,A19),\"0\")","v":0},{"$error":"#N/A"},{"$error":"#N/A"},null,null,{"$error":"#N/A"},{"$error":"#N/A"},"Multi-Racial (0)",{"$f":"COUNTIFS(Data!G:G,A2,Data!AO:AO,A6,Data!AF:AF,A26,Data!AU:AU,A4)+COUNTIFS(Data!G:G,A2,Data!AO:AO,A6,Data!AF:AF,A26,Data!AU:AU,A12)","v":0},{"$error":"#N/A"},{"$error":"#N/A"},"Mild Intellectual Disability (0)",{"$f":"COUNTIFS(Data!G:G,A2,Data!AO:AO,A6,Data!Y:Y,A33,Data!AU:AU,A4)+COUNTIFS(Data!G:G,A2,Data!AO:AO,A6,Data!Y:Y,A33,Data!AU:AU,A12)","v":0},{"$error":"#N/A"},{"$error":"#N/A"},"Mild Intellectual Disability (0)",{"$f":"COUNTIFS(Data!$Y:$Y,A33,Data!$AU:$AU,\"C\")+COUNTIFS(Data!$Y:$Y,A33,Data!$AU:$AU,\"not engaged\")","v":0},{"$f":"IFERROR(COUNTIFS(Data!$AU:$AU,\"C\",Data!$Y:$Y,A33),\"0.0%\")","v":0},{"$f":"IFERROR(COUNTIFS(Data!$AU:$AU,\"Not Engaged\",Data!$Y:$Y,A33),\"0.0%\")","v":0},{"$error":"#N/A"},{"$error":"#N/A"},{"$f":"$B$11&\"\" &\" (\"&G9&\")\"","v":"Not Engaged (0)"},{"$f":"$B$11&\"\" &\" (\"&S14&\")\"","v":"Not Engaged (0)"},{"$f":"$B$11&\"\" &\" (\"&W22&\")\"","v":"Not Engaged (0)"}]
["Unknown",{"$f":"A8","v":"Enrolled in Higher Education"},{"$f":"COUNTIFS(Data!G:G,A2,Data!AO:AO,A6,Data!AT:AT,A8)","v":0},null,{"$f":"IFERROR(C7/$C$5,#N/A)","v":{"$error":"#N/A"}},"Female (0)",{"$f":"IFERROR(COUNTIFS(Data!G2:G1000000,A2,Data!AO2:AO1000000,A6,Data!AT2:AT1000000,A10,Data!AD2:AD1000000,A13),\"0\")","v":0},{"$error":"#DIV/0!"},{"$f":"IFERROR(G7/G2,\"0\")","v":"0"},{"$f":"\"Aged Out \"&\" (\"&K7&\")\"","v":"Aged Out  (0)"},{"$f":"IFERROR(COUNTIFS(Data!G2:G1000000,A2,Data!AO2:AO1000000,A6,Data!AT2:AT1000000,A9,Data!AK2:AK1000000,A19),\"0\")","v":0},{"$error":"#N/A"},{"$error":"#N/A"},{"$f":"$A$15&\" (\"&O7&\")\"","v":"All Other Disabilities (0)"},{"$f":"IFERROR(COUNTIFS(Data!G2:G1000000,A2,Data!AO2:AO1000000,A6,Data!AT2:AT1000000,A8,Data!AA2:AA1000000,A15),\"0\")","v":0},{"$error":"#N/A"},{"$error":"#N/A"},"Native Hawaiian or Other Pacific Islander (0)",{"$f":"COUNTIFS(Data!G:G,A2,Data!AO:AO,A6,Data!AF:AF,A27,Data!AU:AU,A4)+COUNTIFS(Data!G:G,A2,Data!AO:AO,A6,Data!AF:AF,A27,Data!AU:AU,A12)","v":0},{"$error":"#N/A"},{"$error":"#N/A"},"Moderate Intellectual Disability (0)",{"$f":"COUNTIFS(Data!G:G,A2,Data!AO:AO,A6,Data!Y:Y,A34,Data!AU:AU,A4)+COUNTIFS(Data!G:G,A2,Data!AO:AO,A6,Data!Y:Y,A34,Data!AU:AU,A12)","v":0},{"$error":"#N/A"},{"$error":"#N/A"},"Moderate Intellectual Disability (0)",{"$f":"COUNTIFS(Data!$Y:$Y,A34,Data!$AU:$AU,\"C\")+COUNTIFS(Data!$Y:$Y,A34,Data!$AU:$AU,\"not engaged\")","v":0},{"$f":"IFERROR(COUNTIFS(Data!$AU:$AU,\"C\",Data!$Y:$Y,A34),\"0.0%\")","v":0},{"$f":"IFERROR(COUNTIFS(Data!$AU:$AU,\"Not Engaged\",Data!$Y:$Y,A34),\"0.0%\")","v":0},{"$error":"#N/A"},{"$error":"#N/A"},"Male","Asian","Emotional Disability"]
["Enrolled in Higher Education",{"$f":"A9","v":"Competitive Employment"},{"$f":"COUNTIFS(Data!G:G,A2,Data!AO:AO,A6,Data!AT:AT,A9)","v":0},null,{"$f":"IFERROR(C8/$C$5,#N/A)","v":{"$error":"#N/A"}},"Female (0)",{"$f":"IFERROR(COUNTIFS(Data!G2:G1000000,A2,Data!AO2:AO1000000,A6,Data!AT2:AT1000000,A11,Data!AD2:AD1000000,A13),\"0\")","v":0},{"$error":"#DIV/0!"},{"$f":"IFERROR(G8/G2,\"0\")","v":"0"},"Aged Out  (0)",{"$f":"IFERROR(COUNTIFS(Data!G2:G1000000,A2,Data!AO2:AO1000000,A6,Data!AT2:AT1000000,A10,Data!AK2:AK1000000,A19),\"0\")","v":0},{"$error":"#N/A"},{"$error":"#N/A"},{"$f":"$A$15&\" (\"&O8&\")\"","v":"All Other Disabilities (0)"},{"$f":"IFERROR(COUNTIFS(Data!G2:G1000000,A2,Data!AO2:AO1000000,A6,Data!AT2:AT1000000,A9,Data!AA2:AA1000000,A15),\"0\")","v":0},{"$error":"#N/A"},{"$error":"#N/A"},"White (0)",{"$f":"COUNTIFS(Data!G:G,A2,Data!AO:AO,A6,Data!AF:AF,A28,Data!AU:AU,A4)+COUNTIFS(Data!G:G,A2,Data!AO:AO,A6,Data!AF:AF,A28,Data!AU:AU,A12)","v":0},{"$error":"#N/A"},{"$error":"#N/A"},"Multiple Disabilities (0)",{"$f":"COUNTIFS(Data!G:G,A2,Data!AO:AO,A6,Data!Y:Y,A35,Data!AU:AU,A4)+COUNTIFS(Data!G:G,A2,Data!AO:AO,A6,Data!Y:Y,A35,Data!AU:AU,A12)","v":0},{"$error":"#N/A"},{"$error":"#N/A"},"Multiple Disabilities (0)",{"$f":"COUNTIFS(Data!$Y:$Y,A35,Data!$AU:$AU,\"C\")+COUNTIFS(Data!$Y:$Y,A35,Data!$AU:$AU,\"not engaged\")","v":0},{"$f":"IFERROR(COUNTIFS(Data!$AU:$AU,\"C\",Data!$Y:$Y,A35),\"0.0%\")","v":0},{"$f":"IFERROR(COUNTIFS(Data!$AU:$AU,\"Not Engaged\",Data!$Y:$Y,A35),\"0.0%\")","v":0},{"$error":"#N/A"},{"$error":"#N/A"},{"$f":"$A$78&\"\" &\" (\"&G11&\")\"","v":"Higher Education (0)"},{"$f":"$A$78&\"\" &\" (\"&S16&\")\"","v":"Higher Education (0)"},{"$f":"$A$78&\"\" &\" (\"&W24&\")\"","v":"Higher Education (0)"}]
["Competitive Employment",{"$f":"A10","v":"Enrolled In Other Postsecondary Education Or Training"},{"$f":"COUNTIFS(Data!G:G,A2,Data!AO:AO,A6,Data!AT:AT,A10)","v":0},null,{"$error":"#N/A"},"Female (0)",{"$f":"IFERROR(COUNTIFS(Data!G2:G1000000,A2,Data!AO2:AO1000000,A6,Data!AT2:AT1000000,A12,Data!AD2:AD1000000,A13),\"0\")","v":0},{"$error":"#DIV/0!"},{"$f":"IFERROR(G9/G2,\"0\")","v":"0"},"Aged Out  (0)",{"$f":"IFERROR(COUNTIFS(Data!G2:G1000000,A2,Data!AO2:AO1000000,A6,Data!AT2:AT1000000,A11,Data!AK2:AK1000000,A19),\"0\")","v":0},{"$error":"#N/A"},{"$error":"#N/A"},"All Other Disabilities (0)",{"$f":"IFERROR(COUNTIFS(Data!G2:G1000000,A2,Data!AO2:AO1000000,A6,Data!AT2:AT1000000,A10,Data!AA2:AA1000000,A15),\"0\")","v":0},{"$error":"#N/A"},{"$error":"#N/A"},null,null,{"$error":"#N/A"},{"$error":"#N/A"},"Multiple Disabilities - Severe Sensory Impairment (0)",{"$f":"COUNTIFS(Data!G:G,A2,Data!AO:AO,A6,Data!Y:Y,A36,Data!AU:AU,A4)+COUNTIFS(Data!G:G,A2,Data!AO:AO,A6,Data!Y:Y,A36,Data!AU:AU,A12)","v":0},{"$error":"#N/A"},{"$error":"#N/A"},"Multiple Disabilities - Severe Sensory Impairment (0)",{"$f":"COUNTIFS(Data!$Y:$Y,A36,Data!$AU:$AU,\"C\")+COUNTIFS(Data!$Y:$Y,A36,Data!$AU:$AU,\"not engaged\")","v":0},{"$f":"IFERROR(COUNTIFS(Data!$AU:$AU,\"C\",Data!$Y:$Y,A36),\"0.0%\")","v":0},{"$f":"IFERROR(COUNTIFS(Data!$AU:$AU,\"Not Engaged\",Data!$Y:$Y,A36),\"0.0%\")","v":0},{"$error":"#N/A"},{"$error":"#N/A"},{"$f":"$B$8&\"\" &\" (\"&G12&\")\"","v":"Competitive Employment (0)"},{"$f":"$B$8&\"\" &\" (\"&S17&\")\"","v":"Competitive Employment (0)"},{"$f":"$B$8&\"\" &\" (\"&W25&\")\"","v":"Competitive Employment (0)"}]
["Enrolled In Other Postsecondary Education Or Training",{"$f":"A11","v":"Some Other Employment"},{"$f":"COUNTIFS(Data!G:G,A2,Data!AO:AO,A6,Data!AT:AT,A11)","v":0},null,{"$error":"#N/A"},null,null,null,null,"Aged Out  (0)",{"$f":"IFERROR(COUNTIFS(Data!G2:G1000000,A2,Data!AO2:AO1000000,A6,Data!AT2:AT1000000,A12,Data!AK2:AK1000000,A19),\"0\")","v":0},{"$error":"#N/A"},{"$error":"#N/A"},"All Other Disabilities (0)",{"$f":"IFERROR(COUNTIFS(Data!G2:G1000000,A2,Data!AO2:AO1000000,A6,Data!AT2:AT1000000,A11,Data!AA2:AA1000000,A15),\"0\")","v":0},{"$error":"#N/A"},{"$error":"#N/A"},{"$f":"$A$22&\" (\"&S10&\")\"","v":"American Indian or Alaskan Native (0)"},{"$f":"IFERROR(COUNTIFS(Data!G2:G1000000,A2,Data!AO2:AO1000000,A6,Data!AT2:AT1000000,A8,Data!AF2:AF1000000,A22),\"0\")","v":0},{"$error":"#N/A"},{"$error":"#N/A"},"Orthopedic Impairment (0)",{"$f":"COUNTIFS(Data!G:G,A2,Data!AO:AO,A6,Data!Y:Y,A37,Data!AU:AU,A4)+COUNTIFS(Data!G:G,A2,Data!AO:AO,A6,Data!Y:Y,A37,Data!AU:AU,A12)","v":0},{"$error":"#N/A"},{"$error":"#N/A"},"Orthopedic Impairment (0)",{"$f":"COUNTIFS(Data!$Y:$Y,A37,Data!$AU:$AU,\"C\")+COUNTIFS(Data!$Y:$Y,A37,Data!$AU:$AU,\"not engaged\")","v":0},{"$f":"IFERROR(COUNTIFS(Data!$AU:$AU,\"C\",Data!$Y:$Y,A37),\"0.0%\")","v":0},{"$f":"IFERROR(COUNTIFS(Data!$AU:$AU,\"Not Engaged\",Data!$Y:$Y,A37),\"0.0%\")","v":0},{"$error":"#N/A"},{"$error":"#N/A"},{"$f":"$A$80&\"\" &\" (\"&G13&\")\"","v":"Other Postsecondary Education or Training (0)"},{"$f":"$A$80&\"\" &\" (\"&S18&\")\"","v":"Other Postsecondary Education or Training (0)"},{"$f":"$A$80&\"\" &\" (\"&W26&\")\"","v":"Other Postsecondary Education or Training (0)"}]
["Some Other Employment",{"$f":"A12","v":"Not Engaged"},{"$f":"COUNTIFS(Data!G:G,A2,Data!AO:AO,A6,Data!AT:AT,A12)","v":0},null,{"$error":"#N/A"},{"$f":"$A$14&\" (\"&G11&\")\"","v":"Male (0)"},{"$f":"IFERROR(COUNTIFS(Data!G2:G1000000,A2,Data!AO2:AO1000000,A6,Data!AT2:AT1000000,A8,Data!AD2:AD1000000,A14),\"0\")","v":0},{"$f":"IF(G11/$G$3=0,#N/A,G11/$G$3)","v":{"$error":"#DIV/0!"}},{"$f":"IFERROR(G11/G3,\"0\")","v":"0"},null,null,{"$error":"#N/A"},{"$error":"#N/A"},"All Other Disabilities (0)",{"$f":"IFERROR(COUNTIFS(Data!G2:G1000000,A2,Data!AO2:AO1000000,A6,Data!AT2:AT1000000,A12,Data!AA2:AA1000000,A15),\"0\")","v":0},{"$error":"#N/A"},{"$error":"#N/A"},{"$f":"$A$22&\" (\"&S11&\")\"","v":"American Indian or Alaskan Native (0)"},{"$f":"IFERROR(COUNTIFS(Data!G2:G1000000,A2,Data!AO2:AO1000000,A6,Data!AT2:AT1000000,A9,Data!AF2:AF1000000,A22),\"0\")","v":0},{"$error":"#N/A"},{"$error":"#N/A"},"Other Health Impairment (0)",{"$f":"COUNTIFS(Data!G:G,A2,Data!AO:AO,A6,Data!Y:Y,A38,Data!AU:AU,A4)+COUNTIFS(Data!G:G,A2,Data!AO:AO,A6,Data!Y:Y,A38,Data!AU:AU,A12)","v":0},{"$error":"#N/A"},{"$error":"#N/A"},"Other Health Impairment (0)",{"$f":"COUNTIFS(Data!$Y:$Y,A38,Data!$AU:$AU,\"C\")+COUNTIFS(Data!$Y:$Y,A38,Data!$AU:$AU,\"not engaged\")","v":0},{"$f":"IFERROR(COUNTIFS(Data!$AU:$AU,\"C\",Data!$Y:$Y,A38),\"0.0%\")","v":0},{"$f":"IFERROR(COUNTIFS(Data!$AU:$AU,\"Not Engaged\",Data!$Y:$Y,A38),\"0.0%\")","v":0},{"$error":"#N/A"},{"$error":"#N/A"},{"$f":"$A$81&\"\" &\" (\"&G14&\")\"","v":"Other Employment (0)"},{"$f":"$A$81&\"\" &\" (\"&S19&\")\"","v":"Other Employment (0)"},{"$f":"$A$81&\"\" &\" (\"&W27&\")\"","v":"Other Employment (0)"}]
["Not Engaged","Measurement",null,null,null,{"$f":"$A$14&\" (\"&G12&\")\"","v":"Male (0)"},{"$f":"IFERROR(COUNTIFS(Data!G2:G1000000,A2,Data!AO2:AO1000000,A6,Data!AT2:AT1000000,A9,Data!AD2:AD1000000,A14),\"0\")","v":0},{"$f":"IF(G12/$G$3=0,#N/A,G12/$G$3)","v":{"$error":"#DIV/0!"}},{"$f":"IFERROR(G12/G3,\"0\")","v":"0"},{"$f":"$A$20&\" (\"&K12&\")\"","v":"Dropped Out (0)"},{"$f":"IFERROR(COUNTIFS(Data!G2:G1000000,A2,Data!AO2:AO1000000,A6,Data!AT2:AT1000000,A8,Data!AK2:AK1000000,A20),\"0\")","v":0},{"$error":"#N/A"},{"$error":"#N/A"},null,null,{"$error":"#N/A"},{"$error":"#N/A"},"American Indian or Alaskan Native (0)",{"$f":"IFERROR(COUNTIFS(Data!G2:G1000000,A2,Data!AO2:AO1000000,A6,Data!AT2:AT1000000,A10,Data!AF2:AF1000000,A22),\"0\")","v":0},{"$error":"#N/A"},{"$error":"#N/A"},"Severe Intellectual Disability (0)",{"$f":"COUNTIFS(Data!G:G,A2,Data!AO:AO,A6,Data!Y:Y,A39,Data!AU:AU,A4)+COUNTIFS(Data!G:G,A2,Data!AO:AO,A6,Data!Y:Y,A39,Data!AU:AU,A12)","v":0},{"$error":"#N/A"},{"$error":"#N/A"},"Severe Intellectual Disability (0)",{"$f":"COUNTIFS(Data!$Y:$Y,A39,Data!$AU:$AU,\"C\")+COUNTIFS(Data!$Y:$Y,A39,Data!$AU:$AU,\"not engaged\")","v":0},{"$f":"IFERROR(COUNTIFS(Data!$AU:$AU,\"C\",Data!$Y:$Y,A39),\"0.0%\")","v":0},{"$f":"IFERROR(COUNTIFS(Data!$AU:$AU,\"Not Engaged\",Data!$Y:$Y,A39),\"0.0%\")","v":0},{"$error":"#N/A"},{"$error":"#N/A"},{"$f":"$B$11&\"\" &\" (\"&G15&\")\"","v":"Not Engaged (0)"},{"$f":"$B$11&\"\" &\" (\"&S20&\")\"","v":"Not Engaged (0)"},{"$f":"$B$11&\"\" &\" (\"&W28&\")\"","v":"Not Engaged (0)"}]
["Female","Measurement A:\nHigher Education",{"$f":"C7","v":0},null,{"$f":"IFERROR(C13/$C$5,#N/A)","v":{"$error":"#N/A"}},"Male (0)",{"$f":"IFERROR(COUNTIFS(Data!G2:G1000000,A2,Data!AO2:AO1000000,A6,Data!AT2:AT1000000,A10,Data!AD2:AD1000000,A14),\"0\")","v":0},{"$error":"#DIV/0!"},{"$f":"IFERROR(G13/G3,\"0\")","v":"0"},{"$f":"$A$20&\" (\"&K13&\")\"","v":"Dropped Out (0)"},{"$f":"IFERROR(COUNTIFS(Data!G2:G1000000,A2,Data!AO2:AO1000000,A6,Data!AT2:AT1000000,A9,Data!AK2:AK1000000,A20),\"0\")","v":0},{"$error":"#N/A"},{"$error":"#N/A"},{"$f":"$A$16&\" (\"&O13&\")\"","v":"Emotional Disturbance (0)"},{"$f":"IFERROR(COUNTIFS(Data!G2:G1000000,A2,Data!AO2:AO1000000,A6,Data!AT2:AT1000000,A8,Data!AA2:AA1000000,A16),\"0\")","v":0},{"$error":"#N/A"},{"$error":"#N/A"},"American Indian or Alaskan Native (0)",{"$f":"IFERROR(COUNTIFS(Data!G2:G1000000,A2,Data!AO2:AO1000000,A6,Data!AT2:AT1000000,A11,Data!AF2:AF1000000,A22),\"0\")","v":0},{"$error":"#N/A"},{"$error":"#N/A"},"Specific Learning Disability (0)",{"$f":"COUNTIFS(Data!G:G,A2,Data!AO:AO,A6,Data!Y:Y,A40,Data!AU:AU,A4)+COUNTIFS(Data!G:G,A2,Data!AO:AO,A6,Data!Y:Y,A40,Data!AU:AU,A12)","v":0},{"$error":"#N/A"},{"$error":"#N/A"},"Specific Learning Disability (0)",{"$f":"COUNTIFS(Data!$Y:$Y,A40,Data!$AU:$AU,\"C\")+COUNTIFS(Data!$Y:$Y,A40,Data!$AU:$AU,\"not engaged\")","v":0},{"$f":"IFERROR(COUNTIFS(Data!$AU:$AU,\"C\",Data!$Y:$Y,A40),\"0.0%\")","v":0},{"$f":"IFERROR(COUNTIFS(Data!$AU:$AU,\"Not Engaged\",Data!$Y:$Y,A40),\"0.0%\")","v":0},{"$error":"#N/A"},{"$error":"#N/A"},"Aged Out","Black or African American","Emotional Disability (separate Facility, private school)"]
["Male","Measurement B:\nHigher Education + Competitive Employment",{"$f":"C7+C8","v":0},null,{"$f":"IFERROR(C14/$C$5,#N/A)","v":{"$error":"#N/A"}},"Male (0)",{"$f":"IFERROR(COUNTIFS(Data!G2:G1000000,A2,Data!AO2:AO1000000,A6,Data!AT2:AT1000000,A11,Data!AD2:AD1000000,A14),\"0\")","v":0},{"$error":"#DIV/0!"},{"$f":"IFERROR(G14/G3,\"0\")","v":"0"},"Dropped Out (0)",{"$f":"IFERROR(COUNTIFS(Data!G2:G1000000,A2,Data!AO2:AO1000000,A6,Data!AT2:AT1000000,A10,Data!AK2:AK1000000,A20),\"0\")","v":0},{"$error":"#N/A"},{"$error":"#N/A"},{"$f":"$A$16&\" (\"&O14&\")\"","v":"Emotional Disturbance (0)"},{"$f":"IFERROR(COUNTIFS(Data!G2:G1000000,A2,Data!AO2:AO1000000,A6,Data!AT2:AT1000000,A9,Data!AA2:AA1000000,A16),\"0\")","v":0},{"$error":"#N/A"},{"$error":"#N/A"},"American Indian or Alaskan Native (0)",{"$f":"IFERROR(COUNTIFS(Data!G2:G1000000,A2,Data!AO2:AO1000000,A6,Data!AT2:AT1000000,A12,Data!AF2:AF1000000,A22),\"0\")","v":0},{"$error":"#N/A"},{"$error":"#N/A"},{"$f":"B41&\" (\"&W14&\")\"","v":"Speech/Language Impairment (0)"},{"$f":"COUNTIFS(Data!G:G,A2,Data!AO:AO,A6,Data!Y:Y,A41,Data!AU:AU,A4)+COUNTIFS(Data!G:G,A2,Data!AO:AO,A6,Data!Y:Y,A41,Data!AU:AU,A12)","v":0},{"$error":"#N/A"},{"$error":"#N/A"},{"$f":"B41&\" (\"&AA14&\")\"","v":"Speech/Language Impairment (0)"},{"$f":"COUNTIFS(Data!$Y:$Y,A41,Data!$AU:$AU,\"C\")+COUNTIFS(Data!$Y:$Y,A41,Data!$AU:$AU,\"not engaged\")","v":0},{"$f":"IFERROR(COUNTIFS(Data!$AU:$AU,\"C\",Data!$Y:$Y,A41),\"0.0%\")","v":0},{"$f":"IFERROR(COUNTIFS(Data!$AU:$AU,\"Not Engaged\",Data!$Y:$Y,A41),\"0.0%\")","v":0},{"$error":"#N/A"},{"$error":"#N/A"},{"$f":"$A$78&\"\" &\" (\"&K6&\")\"","v":"Higher Education (0)"},{"$f":"$A$78&\"\" &\" (\"&S22&\")\"","v":"Higher Education (0)"},{"$f":"$A$78&\"\" &\" (\"&W30&\")\"","v":"Higher Education (0)"}]
["All Other Disabilities","Measurement C:\nHigher Education + Competitive Employment + Other Postsecondary Education or Training + Other Employment",{"$f":"C7+C8+C9+C10","v":0},null,{"$error":"#N/A"},"Male (0)",{"$f":"IFERROR(COUNTIFS(Data!G2:G1000000,A2,Data!AO2:AO1000000,A6,Data!AT2:AT1000000,A12,Data!AD2:AD1000000,A14),\"0\")","v":0},{"$f":"IF(G15/$G$3=0,#N/A,G15/$G$3)","v":{"$error":"#DIV/0!"}},{"$f":"IFERROR(G15/G3,\"0\")","v":"0"},"Dropped Out (0)",{"$f":"IFERROR(COUNTIFS(Data!G2:G1000000,A2,Data!AO2:AO1000000,A6,Data!AT2:AT1000000,A11,Data!AK2:AK1000000,A20),\"0\")","v":0},{"$error":"#N/A"},{"$error":"#N/A"},"Emotional Disturbance (0)",{"$f":"IFERROR(COUNTIFS(Data!G2:G1000000,A2,Data!AO2:AO1000000,A6,Data!AT2:AT1000000,A10,Data!AA2:AA1000000,A16),\"0\")","v":0},{"$error":"#N/A"},{"$error":"#N/A"},null,null,{"$error":"#N/A"},{"$error":"#N/A"},"Traumatic Brain Injury (0)",{"$f":"COUNTIFS(Data!G:G,A2,Data!AO:AO,A6,Data!Y:Y,A42,Data!AU:AU,A4)+COUNTIFS(Data!G:G,A2,Data!AO:AO,A6,Data!Y:Y,A42,Data!AU:AU,A12)","v":0},{"$error":"#N/A"},{"$error":"#N/A"},"Traumatic Brain Injury (0)",{"$f":"COUNTIFS(Data!$Y:$Y,A42,Data!$AU:$AU,\"C\")+COUNTIFS(Data!$Y:$Y,A42,Data!$AU:$AU,\"not engaged\")","v":0},{"$f":"IFERROR(COUNTIFS(Data!$AU:$AU,\"C\",Data!$Y:$Y,A42),\"0.0%\")","v":0},{"$f":"IFERROR(COUNTIFS(Data!$AU:$AU,\"Not Engaged\",Data!$Y:$Y,A42),\"0.0%\")","v":0},{"$error":"#N/A"},{"$error":"#N/A"},{"$f":"$B$8&\"\" &\" (\"&K7&\")\"","v":"Competitive Employment (0)"},{"$f":"$B$8&\"\" &\" (\"&S23&\")\"","v":"Competitive Employment (0)"},{"$f":"$B$8&\"\" &\" (\"&W31&\")\"","v":"Competitive Employment (0)"}]
["Emotional Disturbance","Not Engaged",{"$f":"C11","v":0},null,{"$error":"#N/A"},null,null,null,null,"Dropped Out (0)",{"$f":"IFERROR(COUNTIFS(Data!G2:G1000000,A2,Data!AO2:AO1000000,A6,Data!AT2:AT1000000,A12,Data!AK2:AK1000000,A20),\"0\")","v":0},{"$error":"#N/A"},{"$error":"#N/A"},"Emotional Disturbance (0)",{"$f":"IFERROR(COUNTIFS(Data!G2:G1000000,A2,Data!AO2:AO1000000,A6,Data!AT2:AT1000000,A11,Data!AA2:AA1000000,A16),\"0\")","v":0},{"$error":"#N/A"},{"$error":"#N/A"},{"$f":"$A$23&\" (\"&S16&\")\"","v":"Asian (0)"},{"$f":"IFERROR(COUNTIFS(Data!G2:G1000000,A2,Data!AO2:AO1000000,A6,Data!AT2:AT1000000,A8,Data!AF2:AF1000000,A23),\"0\")","v":0},{"$error":"#N/A"},{"$error":"#N/A"},"Visual Impairment (0)",{"$f":"COUNTIFS(Data!G:G,A2,Data!AO:AO,A6,Data!Y:Y,A43,Data!AU:AU,A4)+COUNTIFS(Data!G:G,A2,Data!AO:AO,A6,Data!Y:Y,A43,Data!AU:AU,A12)","v":0},{"$error":"#N/A"},{"$error":"#N/A"},"Visual Impairment (0)",{"$f":"COUNTIFS(Data!$Y:$Y,A43,Data!$AU:$AU,\"C\")+COUNTIFS(Data!$Y:$Y,A43,Data!$AU:$AU,\"not engaged\")","v":0},{"$f":"IFERROR(COUNTIFS(Data!$AU:$AU,\"C\",Data!$Y:$Y,A43),\"0.0%\")","v":0},{"$f":"IFERROR(COUNTIFS(Data!$AU:$AU,\"Not Engaged\",Data!$Y:$Y,A43),\"0.0%\")","v":0},{"$error":"#N/A"},{"$error":"#N/A"},{"$f":"$A$80&\"\" &\" (\"&K8&\")\"","v":"Other Postsecondary Education or Training (0)"},{"$f":"$A$80&\"\" &\" (\"&S24&\")\"","v":"Other Postsecondary Education or Training (0)"},{"$f":"$A$80&\"\" &\" (\"&W32&\")\"","v":"Other Postsecondary Education or Training (0)"}]
["Intellectual Disability",null,null,null,null,null,null,null,null,null,null,{"$error":"#N/A"},{"$error":"#N/A"},"Emotional Disturbance (0)",{"$f":"IFERROR(COUNTIFS(Data!G2:G1000000,A2,Data!AO2:AO1000000,A6,Data!AT2:AT1000000,A12,Data!AA2:AA1000000,A16),\"0\")","v":0},{"$error":"#N/A"},{"$error":"#N/A"},{"$f":"$A$23&\" (\"&S17&\")\"","v":"Asian (0)"},{"$f":"IFERROR(COUNTIFS(Data!G2:G1000000,A2,Data!AO2:AO1000000,A6,Data!AT2:AT1000000,A9,Data!AF2:AF1000000,A23),\"0\")","v":0},{"$error":"#N/A"},{"$error":"#N/A"},null,null,null,null,null,null,null,null,null,null,{"$f":"$A$81&\"\" &\" (\"&K9&\")\"","v":"Other Employment (0)"},{"$f":"$A$81&\"\" &\" (\"&S25&\")\"","v":"Other Employment (0)"},{"$f":"$A$81&\"\" &\" (\"&W33&\")\"","v":"Other Employment (0)"}]
["Specific Learning Disability",{"$f":"C5&\" responded for a \"&ROUND(E5,3)*100&\"% response rate.\"","v":{"$error":"#N/A"}},null,null,null,null,null,null,null,{"$f":"$A$21&\" (\"&K18&\")\"","v":"Graduated (0)"},{"$f":"IFERROR(COUNTIFS(Data!G2:G1000000,A2,Data!AO2:AO1000000,A6,Data!AT2:AT1000000,A8,Data!AK2:AK1000000,A21),\"0\")","v":0},{"$error":"#N/A"},{"$error":"#N/A"},null,null,{"$error":"#N/A"},{"$error":"#N/A"},"Asian (0)",{"$f":"IFERROR(COUNTIFS(Data!G2:G1000000,A2,Data!AO2:AO1000000,A6,Data!AT2:AT1000000,A10,Data!AF2:AF1000000,A23),\"0\")","v":0},{"$error":"#N/A"},{"$error":"#N/A"},{"$f":"$A$29&\" (\"&W18&\")\"","v":"Autism (0)"},{"$f":"IFERROR(COUNTIFS(Data!G2:G1000000,A2,Data!AO2:AO1000000,A6,Data!AT2:AT1000000,A8,Data!Y2:Y1000000,A29),\"0\")","v":0},{"$error":"#N/A"},{"$error":"#N/A"},null,null,null,null,null,null,{"$f":"$B$11&\"\" &\" (\"&K10&\")\"","v":"Not Engaged (0)"},{"$f":"$B$11&\"\" &\" (\"&S26&\")\"","v":"Not Engaged (0)"},{"$f":"$B$11&\"\" &\" (\"&W34&\")\"","v":"Not Engaged (0)"}]
["Reached Maximum Age",null,null,null,null,null,null,null,null,{"$f":"$A$21&\" (\"&K19&\")\"","v":"Graduated (0)"},{"$f":"IFERROR(COUNTIFS(Data!G2:G1000000,A2,Data!AO2:AO1000000,A6,Data!AT2:AT1000000,A9,Data!AK2:AK1000000,A21),\"0\")","v":0},{"$error":"#N/A"},{"$error":"#N/A"},{"$f":"$A$17&\" (\"&O19&\")\"","v":"Intellectual Disability (0)"},{"$f":"IFERROR(COUNTIFS(Data!G2:G1000000,A2,Data!AO2:AO1000000,A6,Data!AT2:AT1000000,A8,Data!AA2:AA1000000,A17),\"0\")","v":0},{"$error":"#N/A"},{"$error":"#N/A"},"Asian (0)",{"$f":"IFERROR(COUNTIFS(Data!G2:G1000000,A2,Data!AO2:AO1000000,A6,Data!AT2:AT1000000,A11,Data!AF2:AF1000000,A23),\"0\")","v":0},{"$error":"#N/A"},{"$error":"#N/A"},{"$f":"$A$29&\" (\"&W19&\")\"","v":"Autism (0)"},{"$f":"IFERROR(COUNTIFS(Data!G2:G1000000,A2,Data!AO2:AO1000000,A6,Data!AT2:AT1000000,A9,Data!Y2:Y1000000,A29),\"0\")","v":0},{"$error":"#N/A"},{"$error":"#N/A"},null,null,null,null,null,null,"Dropped Out","Hispanic","Hearing Impairment"]
["Dropped Out",null,null,null,null,null,null,null,null,"Graduated (0)",{"$f":"IFERROR(COUNTIFS(Data!G2:G1000000,A2,Data!AO2:AO1000000,A6,Data!AT2:AT1000000,A10,Data!AK2:AK1000000,A21),\"0\")","v":0},{"$error":"#N/A"},{"$error":"#N/A"},{"$f":"$A$17&\" (\"&O20&\")\"","v":"Intellectual Disability (0)"},{"$f":"IFERROR(COUNTIFS(Data!G2:G1000000,A2,Data!AO2:AO1000000,A6,Data!AT2:AT1000000,A9,Data!AA2:AA1000000,A17),\"0\")","v":0},{"$error":"#N/A"},{"$error":"#N/A"},"Asian (0)",{"$f":"IFERROR(COUNTIFS(Data!G2:G1000000,A2,Data!AO2:AO1000000,A6,Data!AT2:AT1000000,A12,Data!AF2:AF1000000,A23),\"0\")","v":0},{"$error":"#N/A"},{"$error":"#N/A"},"Autism (0)",{"$f":"IFERROR(COUNTIFS(Data!G2:G1000000,A2,Data!AO2:AO1000000,A6,Data!AT2:AT1000000,A10,Data!Y2:Y1000000,A29),\"0\")","v":0},{"$error":"#N/A"},{"$error":"#N/A"},null,null,null,null,null,null,{"$f":"$A$78&\"\" &\" (\"&K12&\")\"","v":"Higher Education (0)"},{"$f":"$A$78&\"\" &\" (\"&S28&\")\"","v":"Higher Education (0)"},{"$f":"$A$78&\"\" &\" (\"&W36&\")\"","v":"Higher Education (0)"}]
["Graduated",null,null,null,null,null,null,null,null,"Graduated (0)",{"$f":"IFERROR(COUNTIFS(Data!G2:G1000000,A2,Data!AO2:AO1000000,A6,Data!AT2:AT1000000,A11,Data!AK2:AK1000000,A21),\"0\")","v":0},{"$error":"#N/A"},{"$error":"#N/A"},"Intellectual Disability (0)",{"$f":"IFERROR(COUNTIFS(Data!G2:G1000000,A2,Data!AO2:AO1000000,A6,Data!AT2:AT1000000,A10,Data!AA2:AA1000000,A17),\"0\")","v":0},{"$error":"#N/A"},{"$error":"#N/A"},null,null,{"$error":"#N/A"},{"$error":"#N/A"},"Autism (0)",{"$f":"IFERROR(COUNTIFS(Data!G2:G1000000,A2,Data!AO2:AO1000000,A6,Data!AT2:AT1000000,A11,Data!Y2:Y1000000,A29),\"0\")","v":0},{"$error":"#N/A"},{"$error":"#N/A"},null,null,null,null,null,null,{"$f":"$B$8&\"\" &\" (\"&K13&\")\"","v":"Competitive Employment (0)"},{"$f":"$B$8&\"\" &\" (\"&S29&\")\"","v":"Competitive Employment (0)"},{"$f":"$B$8&\"\" &\" (\"&W37&\")\"","v":"Competitive Employment (0)"}]
["American Indian or Alaskan Native",null,null,null,null,null,null,null,null,"Graduated (0)",{"$f":"IFERROR(COUNTIFS(Data!G2:G1000000,A2,Data!AO2:AO1000000,A6,Data!AT2:AT1000000,A12,Data!AK2:AK1000000,A21),\"0\")","v":0},{"$error":"#N/A"},{"$error":"#N/A"},"Intellectual Disability (0)",{"$f":"IFERROR(COUNTIFS(Data!G2:G1000000,A2,Data!AO2:AO1000000,A6,Data!AT2:AT1000000,A11,Data!AA2:AA1000000,A17),\"0\")","v":0},{"$error":"#N/A"},{"$error":"#N/A"},{"$f":"$A$24&\" (\"&S22&\")\"","v":"Black or African American (0)"},{"$f":"IFERROR(COUNTIFS(Data!G2:G1000000,A2,Data!AO2:AO1000000,A6,Data!AT2:AT1000000,A8,Data!AF2:AF1000000,A24),\"0\")","v":0},{"$error":"#N/A"},{"$error":"#N/A"},"Autism (0)",{"$f":"IFERROR(COUNTIFS(Data!G2:G1000000,A2,Data!AO2:AO1000000,A6,Data!AT2:AT1000000,A12,Data!Y2:Y1000000,A29),\"0\")","v":0},{"$error":"#N/A"},{"$error":"#N/A"},null,null,null,null,null,null,{"$f":"$A$80&\"\" &\" (\"&K14&\")\"","v":"Other Postsecondary Education or Training (0)"},{"$f":"$A$80&\"\" &\" (\"&S30&\")\"","v":"Other Postsecondary Education or Training (0)"},{"$f":"$A$80&\"\" &\" (\"&W38&\")\"","v":"Other Postsecondary Education or Training (0)"}]
["Asian",null,null,null,null,null,null,null,null,null,null,null,null,"Intellectual Disability (0)",{"$f":"IFERROR(COUNTIFS(Data!G2:G1000000,A2,Data!AO2:AO1000000,A6,Data!AT2:AT1000000,A12,Data!AA2:AA1000000,A17),\"0\")","v":0},{"$error":"#N/A"},{"$error":"#N/A"},{"$f":"$A$24&\" (\"&S23&\")\"","v":"Black or African American (0)"},{"$f":"IFERROR(COUNTIFS(Data!G2:G1000000,A2,Data!AO2:AO1000000,A6,Data!AT2:AT1000000,A9,Data!AF2:AF1000000,A24),\"0\")","v":0},{"$error":"#N/A"},{"$error":"#N/A"},null,null,null,null,null,null,null,null,null,null,{"$f":"$A$81&\"\" &\" (\"&K15&\")\"","v":"Other Employment (0)"},{"$f":"$A$81&\"\" &\" (\"&S31&\")\"","v":"Other Employment (0)"},{"$f":"$A$81&\"\" &\" (\"&W39&\")\"","v":"Other Employment (0)"}]
["Black or African American",null,null,null,null,null,null,null,null,null,null,null,null,null,null,{"$error":"#N/A"},{"$error":"#N/A"},"Black or African American (0)",{"$f":"IFERROR(COUNTIFS(Data!G2:G1000000,A2,Data!AO2:AO1000000,A6,Data!AT2:AT1000000,A10,Data!AF2:AF1000000,A24),\"0\")","v":0},{"$error":"#N/A"},{"$error":"#N/A"},{"$f":"$A$30&\" (\"&W24&\")\"","v":"Emotional Disability (0)"},{"$f":"IFERROR(COUNTIFS(Data!G2:G1000000,A2,Data!AO2:AO1000000,A6,Data!AT2:AT1000000,A8,Data!Y2:Y1000000,A30),\"0\")","v":0},{"$error":"#N/A"},{"$error":"#N/A"},null,null,null,null,null,null,{"$f":"$B$11&\"\" &\" (\"&K16&\")\"","v":"Not Engaged (0)"},{"$f":"$B$11&\"\" &\" (\"&S32&\")\"","v":"Not Engaged (0)"},{"$f":"$B$11&\"\" &\" (\"&W40&\")\"","v":"Not Engaged (0)"}]
["Hispanic or Latino",null,null,null,null,null,null,null,null,null,null,null,null,{"$f":"$A$18&\" (\"&O25&\")\"","v":"Specific Learning Disability (0)"},{"$f":"IFERROR(COUNTIFS(Data!G2:G1000000,A2,Data!AO2:AO1000000,A6,Data!AT2:AT1000000,A8,Data!AA2:AA1000000,A18),\"0\")","v":0},{"$error":"#N/A"},{"$error":"#N/A"},"Black or African American (0)",{"$f":"IFERROR(COUNTIFS(Data!G2:G1000000,A2,Data!AO2:AO1000000,A6,Data!AT2:AT1000000,A11,Data!AF2:AF1000000,A24),\"0\")","v":0},{"$error":"#N/A"},{"$error":"#N/A"},{"$f":"$A$30&\" (\"&W25&\")\"","v":"Emotional Disability (0)"},{"$f":"IFERROR(COUNTIFS(Data!G2:G1000000,A2,Data!AO2:AO1000000,A6,Data!AT2:AT1000000,A9,Data!Y2:Y1000000,A30),\"0\")","v":0},{"$error":"#N/A"},{"$error":"#N/A"},null,null,null,null,null,null,"Graduated","Multi-Racial","Mild Intellectual Disability"]
["Multi-Racial",null,null,null,null,null,null,null,null,null,null,null,null,{"$f":"$A$18&\" (\"&O26&\")\"","v":"Specific Learning Disability (0)"},{"$f":"IFERROR(COUNTIFS(Data!G2:G1000000,A2,Data!AO2:AO1000000,A6,Data!AT2:AT1000000,A9,Data!AA2:AA1000000,A18),\"0\")","v":0},{"$error":"#N/A"},{"$error":"#N/A"},"Black or African American (0)",{"$f":"IFERROR(COUNTIFS(Data!G2:G1000000,A2,Data!AO2:AO1000000,A6,Data!AT2:AT1000000,A12,Data!AF2:AF1000000,A24),\"0\")","v":0},{"$error":"#N/A"},{"$error":"#N/A"},"Emotional Disability (0)",{"$f":"IFERROR(COUNTIFS(Data!G2:G1000000,A2,Data!AO2:AO1000000,A6,Data!AT2:AT1000000,A10,Data!Y2:Y1000000,A30),\"0\")","v":0},{"$error":"#N/A"},{"$error":"#N/A"},null,null,null,null,null,null,{"$f":"$A$78&\"\" &\" (\"&K18&\")\"","v":"Higher Education (0)"},{"$f":"$A$78&\"\" &\" (\"&S34&\")\"","v":"Higher Education (0)"},{"$f":"$A$78&\"\" &\" (\"&W42&\")\"","v":"Higher Education (0)"}]
["Native Hawaiian or Other Pacific Islander",null,null,null,null,null,null,null,null,null,null,null,null,"Specific Learning Disability (0)",{"$f":"IFERROR(COUNTIFS(Data!G2:G1000000,A2,Data!AO2:AO1000000,A6,Data!AT2:AT1000000,A10,Data!AA2:AA1000000,A18),\"0\")","v":0},{"$error":"#N/A"},{"$error":"#N/A"},null,null,{"$error":"#N/A"},{"$error":"#N/A"},"Emotional Disability (0)",{"$f":"IFERROR(COUNTIFS(Data!G2:G1000000,A2,Data!AO2:AO1000000,A6,Data!AT2:AT1000000,A11,Data!Y2:Y1000000,A30),\"0\")","v":0},{"$error":"#N/A"},{"$error":"#N/A"},null,null,null,null,null,null,{"$f":"$B$8&\"\" &\" (\"&K19&\")\"","v":"Competitive Employment (0)"},{"$f":"$B$8&\"\" &\" (\"&S35&\")\"","v":"Competitive Employment (0)"},{"$f":"$B$8&\"\" &\" (\"&W43&\")\"","v":"Competitive Employment (0)"}]
["White",null,null,null,null,null,null,null,null,null,null,null,null,"Specific Learning Disability (0)",{"$f":"IFERROR(COUNTIFS(Data!G2:G1000000,A2,Data!AO2:AO1000000,A6,Data!AT2:AT1000000,A11,Data!AA2:AA1000000,A18),\"0\")","v":0},{"$error":"#N/A"},{"$error":"#N/A"},{"$f":"$A$25&\" (\"&S28&\")\"","v":"Hispanic or Latino (0)"},{"$f":"IFERROR(COUNTIFS(Data!G2:G1000000,A2,Data!AO2:AO1000000,A6,Data!AT2:AT1000000,A8,Data!AF2:AF1000000,A25),\"0\")","v":0},{"$error":"#N/A"},{"$error":"#N/A"},"Emotional Disability (0)",{"$f":"IFERROR(COUNTIFS(Data!G2:G1000000,A2,Data!AO2:AO1000000,A6,Data!AT2:AT1000000,A12,Data!Y2:Y1000000,A30),\"0\")","v":0},{"$error":"#N/A"},{"$error":"#N/A"},null,null,null,null,null,null,{"$f":"$A$80&\"\" &\" (\"&K20&\")\"","v":"Other Postsecondary Education or Training (0)"},{"$f":"$A$80&\"\" &\" (\"&S36&\")\"","v":"Other Postsecondary Education or Training (0)"},{"$f":"$A$80&\"\" &\" (\"&W44&\")\"","v":"Other Postsecondary Education or Training (0)"}]
["Autism",null,null,null,null,null,null,null,null,null,null,null,null,"Specific Learning Disability (0)",{"$f":"IFERROR(COUNTIFS(Data!G2:G1000000,A2,Data!AO2:AO1000000,A6,Data!AT2:AT1000000,A12,Data!AA2:AA1000000,A18),\"0\")","v":0},{"$error":"#N/A"},{"$f":"IFERROR(O29/O5,\"0\")","v":"0"},{"$f":"$A$25&\" (\"&S29&\")\"","v":"Hispanic or Latino (0)"},{"$f":"IFERROR(COUNTIFS(Data!G2:G1000000,A2,Data!AO2:AO1000000,A6,Data!AT2:AT1000000,A9,Data!AF2:AF1000000,A25),\"0\")","v":0},{"$error":"#N/A"},{"$error":"#N/A"},null,null,null,null,null,null,null,null,null,null,{"$f":"$A$81&\"\" &\" (\"&K21&\")\"","v":"Other Employment (0)"},{"$f":"$A$81&\"\" &\" (\"&S37&\")\"","v":"Other Employment (0)"},{"$f":"$A$81&\"\" &\" (\"&W45&\")\"","v":"Other Employment (0)"}]
["Emotional Disability",null,null,null,null,null,null,null,null,null,null,null,null,null,null,null,null,"Hispanic or Latino (0)",{"$f":"IFERROR(COUNTIFS(Data!G2:G1000000,A2,Data!AO2:AO1000000,A6,Data!AT2:AT1000000,A10,Data!AF2:AF1000000,A25),\"0\")","v":0},{"$error":"#N/A"},{"$error":"#N/A"},{"$f":"$A$31&\" (\"&W30&\")\"","v":"Emotional Disability (separate facility, private school) (0)"},{"$f":"IFERROR(COUNTIFS(Data!G2:G1000000,A2,Data!AO2:AO1000000,A6,Data!AT2:AT1000000,A8,Data!Y2:Y1000000,A31),\"0\")","v":0},{"$error":"#N/A"},{"$error":"#N/A"},null,null,null,null,null,null,{"$f":"$B$11&\"\" &\" (\"&K22&\")\"","v":"Not Engaged (0)"},{"$f":"$B$11&\"\" &\" (\"&S38&\")\"","v":"Not Engaged (0)"},{"$f":"$B$11&\"\" &\" (\"&W46&\")\"","v":"Not Engaged (0)"}]
["Emotional Disability (separate facility, private school)",null,null,null,null,null,null,null,null,null,null,null,null,null,null,null,null,"Hispanic or Latino (0)",{"$f":"IFERROR(COUNTIFS(Data!G2:G1000000,A2,Data!AO2:AO1000000,A6,Data!AT2:AT1000000,A11,Data!AF2:AF1000000,A25),\"0\")","v":0},{"$error":"#N/A"},{"$error":"#N/A"},{"$f":"$A$31&\" (\"&W31&\")\"","v":"Emotional Disability (separate facility, private school) (0)"},{"$f":"IFERROR(COUNTIFS(Data!G2:G1000000,A2,Data!AO2:AO1000000,A6,Data!AT2:AT1000000,A9,Data!Y2:Y1000000,A31),\"0\")","v":0},{"$error":"#N/A"},{"$error":"#N/A"},null,null,null,null,null,null,"All Other Disabilities","Native Hawaiian or Other Pacific Islander","Moderate Intellectual Disability"]
["Hearing Impairment",null,null,null,null,null,null,null,null,null,null,null,null,null,null,null,null,"Hispanic or Latino (0)",{"$f":"IFERROR(COUNTIFS(Data!G2:G1000000,A2,Data!AO2:AO1000000,A6,Data!AT2:AT1000000,A12,Data!AF2:AF1000000,A25),\"0\")","v":0},{"$error":"#N/A"},{"$error":"#N/A"},"Emotional Disability (separate facility, private school) (0)",{"$f":"IFERROR(COUNTIFS(Data!G2:G1000000,A2,Data!AO2:AO1000000,A6,Data!AT2:AT1000000,A10,Data!Y2:Y1000000,A31),\"0\")","v":0},{"$error":"#N/A"},{"$error":"#N/A"},null,null,null,null,null,null,{"$f":"$A$78&\"\" &\" (\"&O7&\")\"","v":"Higher Education (0)"},{"$f":"$A$78&\"\" &\" (\"&S40&\")\"","v":"Higher Education (0)"},{"$f":"$A$78&\"\" &\" (\"&W48&\")\"","v":"Higher Education (0)"}]
["Mild Intellectual Disability",null,null,null,null,null,null,null,null,null,null,null,null,null,null,null,null,null,null,{"$error":"#N/A"},{"$error":"#N/A"},"Emotional Disability (separate facility, private school) (0)",{"$f":"IFERROR(COUNTIFS(Data!G2:G1000000,A2,Data!AO2:AO1000000,A6,Data!AT2:AT1000000,A11,Data!Y2:Y1000000,A31),\"0\")","v":0},{"$error":"#N/A"},{"$error":"#N/A"},null,null,null,null,null,null,{"$f":"$B$8&\"\" &\" (\"&O8&\")\"","v":"Competitive Employment (0)"},{"$f":"$B$8&\"\" &\" (\"&S41&\")\"","v":"Competitive Employment (0)"},{"$f":"$B$8&\"\" &\" (\"&W49&\")\"","v":"Competitive Employment (0)"}]
["Moderate Intellectual Disability",null,null,null,null,null,null,null,null,null,null,null,null,null,null,null,null,{"$f":"$A$26&\" (\"&S34&\")\"","v":"Multi-Racial (0)"},{"$f":"IFERROR(COUNTIFS(Data!G2:G1000000,A2,Data!AO2:AO1000000,A6,Data!AT2:AT1000000,A8,Data!AF2:AF1000000,A26),\"0\")","v":0},{"$error":"#N/A"},{"$error":"#N/A"},"Emotional Disability (separate facility, private school) (0)",{"$f":"IFERROR(COUNTIFS(Data!G2:G1000000,A2,Data!AO2:AO1000000,A6,Data!AT2:AT1000000,A12,Data!Y2:Y1000000,A31),\"0\")","v":0},{"$error":"#N/A"},{"$error":"#N/A"},null,null,null,null,null,null,{"$f":"$A$80&\"\" &\" (\"&O9&\")\"","v":"Other Postsecondary Education or Training (0)"},{"$f":"$A$80&\"\" &\" (\"&S42&\")\"","v":"Other Postsecondary Education or Training (0)"},{"$f":"$A$80&\"\" &\" (\"&W50&\")\"","v":"Other Postsecondary Education or Training (0)"}]
["Multiple Disabilities",null,null,null,null,null,null,null,null,null,null,null,null,null,null,null,null,{"$f":"$A$26&\" (\"&S35&\")\"","v":"Multi-Racial (0)"},{"$f":"IFERROR(COUNTIFS(Data!G2:G1000000,A2,Data!AO2:AO1000000,A6,Data!AT2:AT1000000,A9,Data!AF2:AF1000000,A26),\"0\")","v":0},{"$error":"#N/A"},{"$error":"#N/A"},null,null,null,null,null,null,null,null,null,null,{"$f":"$A$81&\"\" &\" (\"&O10&\")\"","v":"Other Employment (0)"},{"$f":"$A$81&\"\" &\" (\"&S43&\")\"","v":"Other Employment (0)"},{"$f":"$A$81&\"\" &\" (\"&W51&\")\"","v":"Other Employment (0)"}]
["Multiple Disabilities - Severe Sensory Impairment",null,null,null,null,null,null,null,null,null,null,null,null,null,null,null,null,"Multi-Racial (0)",{"$f":"IFERROR(COUNTIFS(Data!G2:G1000000,A2,Data!AO2:AO1000000,A6,Data!AT2:AT1000000,A10,Data!AF2:AF1000000,A26),\"0\")","v":0},{"$error":"#N/A"},{"$error":"#N/A"},{"$f":"$A$32&\" (\"&W36&\")\"","v":"Hearing Impairment (0)"},{"$f":"IFERROR(COUNTIFS(Data!G2:G1000000,A2,Data!AO2:AO1000000,A6,Data!AT2:AT1000000,A8,Data!Y2:Y1000000,A32),\"0\")","v":0},{"$error":"#N/A"},{"$error":"#N/A"},null,null,null,null,null,null,{"$f":"$B$11&\"\" &\" (\"&O11&\")\"","v":"Not Engaged (0)"},{"$f":"$B$11&\"\" &\" (\"&S44&\")\"","v":"Not Engaged (0)"},{"$f":"$B$11&\"\" &\" (\"&W52&\")\"","v":"Not Engaged (0)"}]
["Orthopedic Impairment",null,null,null,null,null,null,null,null,null,null,null,null,null,null,null,null,"Multi-Racial (0)",{"$f":"IFERROR(COUNTIFS(Data!G2:G1000000,A2,Data!AO2:AO1000000,A6,Data!AT2:AT1000000,A11,Data!AF2:AF1000000,A26),\"0\")","v":0},{"$error":"#N/A"},{"$error":"#N/A"},{"$f":"$A$32&\" (\"&W37&\")\"","v":"Hearing Impairment (0)"},{"$f":"IFERROR(COUNTIFS(Data!G2:G1000000,A2,Data!AO2:AO1000000,A6,Data!AT2:AT1000000,A9,Data!Y2:Y1000000,A32),\"0\")","v":0},{"$error":"#N/A"},{"$error":"#N/A"},null,null,null,null,null,null,"Emotional Disturbance","White","Multiple Disabilities"]
["Other Health Impairment",null,null,null,null,null,null,null,null,null,null,null,null,null,null,null,null,"Multi-Racial (0)",{"$f":"IFERROR(COUNTIFS(Data!G2:G1000000,A2,Data!AO2:AO1000000,A6,Data!AT2:AT1000000,A12,Data!AF2:AF1000000,A26),\"0\")","v":0},{"$error":"#N/A"},{"$error":"#N/A"},"Hearing Impairment (0)",{"$f":"IFERROR(COUNTIFS(Data!G2:G1000000,A2,Data!AO2:AO1000000,A6,Data!AT2:AT1000000,A10,Data!Y2:Y1000000,A32),\"0\")","v":0},{"$error":"#N/A"},{"$error":"#N/A"},null,null,null,null,null,null,{"$f":"$A$78&\"\" &\" (\"&O13&\")\"","v":"Higher Education (0)"},{"$f":"$A$78&\"\" &\" (\"&S46&\")\"","v":"Higher Education (0)"},{"$f":"$A$78&\"\" &\" (\"&W54&\")\"","v":"Higher Education (0)"}]
["Severe Intellectual Disability",null,null,null,null,null,null,null,null,null,null,null,null,null,null,null,null,null,null,{"$error":"#N/A"},{"$error":"#N/A"},"Hearing Impairment (0)",{"$f":"IFERROR(COUNTIFS(Data!G2:G1000000,A2,Data!AO2:AO1000000,A6,Data!AT2:AT1000000,A11,Data!Y2:Y1000000,A32),\"0\")","v":0},{"$error":"#N/A"},{"$error":"#N/A"},null,null,null,null,null,null,{"$f":"$B$8&\"\" &\" (\"&O14&\")\"","v":"Competitive Employment (0)"},{"$f":"$B$8&\"\" &\" (\"&S47&\")\"","v":"Competitive Employment (0)"},{"$f":"$B$8&\"\" &\" (\"&W55&\")\"","v":"Competitive Employment (0)"}]
["Specific Learning Disability",null,null,null,null,null,null,null,null,null,null,null,null,null,null,null,null,{"$f":"$A$27&\" (\"&S40&\")\"","v":"Native Hawaiian or Other Pacific Islander (0)"},{"$f":"IFERROR(COUNTIFS(Data!G2:G1000000,A2,Data!AO2:AO1000000,A6,Data!AT2:AT1000000,A8,Data!AF2:AF1000000,A27),\"0\")","v":0},{"$error":"#N/A"},{"$error":"#N/A"},"Hearing Impairment (0)",{"$f":"IFERROR(COUNTIFS(Data!G2:G1000000,A2,Data!AO2:AO1000000,A6,Data!AT2:AT1000000,A12,Data!Y2:Y1000000,A32),\"0\")","v":0},{"$error":"#N/A"},{"$error":"#N/A"},null,null,null,null,null,null,{"$f":"$A$80&\"\" &\" (\"&O15&\")\"","v":"Other Postsecondary Education or Training (0)"},{"$f":"$A$80&\"\" &\" (\"&S48&\")\"","v":"Other Postsecondary Education or Training (0)"},{"$f":"$A$80&\"\" &\" (\"&W56&\")\"","v":"Other Postsecondary Education or Training (0)"}]
["Speech/Language Impairment (FY 2010 absorbed PSL)","Speech/Language Impairment",null,null,null,null,null,null,null,null,null,null,null,null,null,null,null,{"$f":"$A$27&\" (\"&S41&\")\"","v":"Native Hawaiian or Other Pacific Islander (0)"},{"$f":"IFERROR(COUNTIFS(Data!G2:G1000000,A2,Data!AO2:AO1000000,A6,Data!AT2:AT1000000,A9,Data!AF2:AF1000000,A27),\"0\")","v":0},{"$error":"#N/A"},{"$error":"#N/A"},null,null,null,null,null,null,null,null,null,null,{"$f":"$A$81&\"\" &\" (\"&O16&\")\"","v":"Other Employment (0)"},{"$f":"$A$81&\"\" &\" (\"&S49&\")\"","v":"Other Employment (0)"},{"$f":"$A$81&\"\" &\" (\"&W57&\")\"","v":"Other Employment (0)"}]
["Traumatic Brain Injury",null,null,null,null,null,null,null,null,null,null,null,null,null,null,null,null,"Native Hawaiian or Other Pacific Islander (0)",{"$f":"IFERROR(COUNTIFS(Data!G2:G1000000,A2,Data!AO2:AO1000000,A6,Data!AT2:AT1000000,A10,Data!AF2:AF1000000,A27),\"0\")","v":0},{"$error":"#N/A"},{"$error":"#N/A"},{"$f":"$A$33&\" (\"&W42&\")\"","v":"Mild Intellectual Disability (0)"},{"$f":"IFERROR(COUNTIFS(Data!G2:G1000000,A2,Data!AO2:AO1000000,A6,Data!AT2:AT1000000,A8,Data!Y2:Y1000000,A33),\"0\")","v":0},{"$error":"#N/A"},{"$error":"#N/A"},null,null,null,null,null,null,{"$f":"$B$11&\"\" &\" (\"&O17&\")\"","v":"Not Engaged (0)"},{"$f":"$B$11&\"\" &\" (\"&S50&\")\"","v":"Not Engaged (0)"},{"$f":"$B$11&\"\" &\" (\"&W58&\")\"","v":"Not Engaged (0)"}]
["Visual Impairment",null,null,null,null,null,null,null,null,null,null,null,null,null,null,null,null,"Native Hawaiian or Other Pacific Islander (0)",{"$f":"IFERROR(COUNTIFS(Data!G2:G1000000,A2,Data!AO2:AO1000000,A6,Data!AT2:AT1000000,A11,Data!AF2:AF1000000,A27),\"0\")","v":0},{"$error":"#N/A"},{"$error":"#N/A"},{"$f":"$A$33&\" (\"&W43&\")\"","v":"Mild Intellectual Disability (0)"},{"$f":"IFERROR(COUNTIFS(Data!G2:G1000000,A2,Data!AO2:AO1000000,A6,Data!AT2:AT1000000,A9,Data!Y2:Y1000000,A33),\"0\")","v":0},{"$error":"#N/A"},{"$error":"#N/A"},null,null,null,null,null,null,"Intellectual Disability",null,"Multiple Disabilities - Severe Senroy Impairment"]
[null,null,null,null,null,null,null,null,null,null,null,null,null,null,null,null,null,"Native Hawaiian or Other Pacific Islander (0)",{"$f":"IFERROR(COUNTIFS(Data!G2:G1000000,A2,Data!AO2:AO1000000,A6,Data!AT2:AT1000000,A12,Data!AF2:AF1000000,A27),\"0\")","v":0},{"$error":"#N/A"},{"$error":"#N/A"},"Mild Intellectual Disability (0)",{"$f":"IFERROR(COUNTIFS(Data!G2:G1000000,A2,Data!AO2:AO1000000,A6,Data!AT2:AT1000000,A10,Data!Y2:Y1000000,A33),\"0\")","v":0},{"$error":"#N/A"},{"$error":"#N/A"},null,null,null,null,null,null,{"$f":"$A$78&\"\" &\" (\"&O19&\")\"","v":"Higher Education (0)"},null,{"$f":"$A$78&\"\" &\" (\"&W60&\")\"","v":"Higher Education (0)"}]
["Breakdown Titles",null,null,null,null,null,null,null,null,null,null,null,null,null,null,null,null,null,null,{"$error":"#N/A"},{"$error":"#N/A"},"Mild Intellectual Disability (0)",{"$f":"IFERROR(COUNTIFS(Data!G2:G1000000,A2,Data!AO2:AO1000000,A6,Data!AT2:AT1000000,A11,Data!Y2:Y1000000,A33),\"0\")","v":0},{"$error":"#N/A"},{"$error":"#N/A"},null,null,null,null,null,null,{"$f":"$B$8&\"\" &\" (\"&O20&\")\"","v":"Competitive Employment (0)"},null,{"$f":"$B$8&\"\" &\" (\"&W61&\")\"","v":"Competitive Employment (0)"}]
[{"$f":"A13&\" Respondents\" &\" (\"&G2&\")\"","v":"Female Respondents (0)"},null,null,null,null,null,null,null,null,null,null,null,null,null,null,null,null,{"$f":"$A$28&\" (\"&S46&\")\"","v":"White (0)"},{"$f":"IFERROR(COUNTIFS(Data!G2:G1000000,A2,Data!AO2:AO1000000,A6,Data!AT2:AT1000000,A8,Data!AF2:AF1000000,A28),\"0\")","v":0},{"$error":"#N/A"},{"$error":"#N/A"},"Mild Intellectual Disability (0)",{"$f":"IFERROR(COUNTIFS(Data!G2:G1000000,A2,Data!AO2:AO1000000,A6,Data!AT2:AT1000000,A12,Data!Y2:Y1000000,A33),\"0\")","v":0},{"$error":"#N/A"},{"$error":"#N/A"},null,null,null,null,null,null,{"$f":"$A$80&\"\" &\" (\"&O21&\")\"","v":"Other Postsecondary Education or Training (0)"},null,{"$f":"$A$80&\"\" &\" (\"&W62&\")\"","v":"Other Postsecondary Education or Training (0)"}]
[{"$f":"A14&\" Respondents\" &\" (\"&G3&\")\"","v":"Male Respondents (0)"},null,null,null,null,null,null,null,null,null,null,null,null,null,null,null,null,{"$f":"$A$28&\" (\"&S47&\")\"","v":"White (0)"},{"$f":"IFERROR(COUNTIFS(Data!G2:G1000000,A2,Data!AO2:AO1000000,A6,Data!AT2:AT1000000,A9,Data!AF2:AF1000000,A28),\"0\")","v":0},{"$error":"#N/A"},{"$error":"#N/A"},null,null,null,null,null,null,null,null,null,null,{"$f":"$A$81&\"\" &\" (\"&O22&\")\"","v":"Other Employment (0)"},null,{"$f":"$A$81&\"\" &\" (\"&W63&\")\"","v":"Other Employment (0)"}]
[{"$f":"A15&\" Respondents\" &\" (\"&O2&\")\"","v":"All Other Disabilities Respondents (0)"},null,null,null,null,null,null,null,null,null,null,null,null,null,null,null,null,"White (0)",{"$f":"IFERROR(COUNTIFS(Data!G2:G1000000,A2,Data!AO2:AO1000000,A6,Data!AT2:AT1000000,A10,Data!AF2:AF1000000,A28),\"0\")","v":0},{"$error":"#N/A"},{"$error":"#N/A"},{"$f":"$A$34&\" (\"&W48&\")\"","v":"Moderate Intellectual Disability (0)"},{"$f":"IFERROR(COUNTIFS(Data!G2:G1000000,A2,Data!AO2:AO1000000,A6,Data!AT2:AT1000000,A8,Data!Y2:Y1000000,A34),\"0\")","v":0},{"$error":"#N/A"},{"$error":"#N/A"},null,null,null,null,null,null,{"$f":"$B$11&\"\" &\" (\"&O23&\")\"","v":"Not Engaged (0)"},null,{"$f":"$B$11&\"\" &\" (\"&W64&\")\"","v":"Not Engaged (0)"}]
[{"$f":"A16&\" Respondents\" &\" (\"&O3&\")\"","v":"Emotional Disturbance Respondents (0)"},null,null,null,null,null,null,null,null,null,null,null,null,null,null,null,null,"White (0)",{"$f":"IFERROR(COUNTIFS(Data!G2:G1000000,A2,Data!AO2:AO1000000,A6,Data!AT2:AT1000000,A11,Data!AF2:AF1000000,A28),\"0\")","v":0},{"$error":"#N/A"},{"$error":"#N/A"},{"$f":"$A$34&\" (\"&W49&\")\"","v":"Moderate Intellectual Disability (0)"},{"$f":"IFERROR(COUNTIFS(Data!G2:G1000000,A2,Data!AO2:AO1000000,A6,Data!AT2:AT1000000,A9,Data!Y2:Y1000000,A34),\"0\")","v":0},{"$error":"#N/A"},{"$error":"#N/A"},null,null,null,null,null,null,"Specific Learning Disability",null,"Orthopedic Impairment"]
[{"$f":"A17&\" Respondents\" &\" (\"&O4&\")\"","v":"Intellectual Disability Respondents (0)"},null,null,null,null,null,null,null,null,null,null,null,null,null,null,null,null,"White (0)",{"$f":"IFERROR(COUNTIFS(Data!G2:G1000000,A2,Data!AO2:AO1000000,A6,Data!AT2:AT1000000,A12,Data!AF2:AF1000000,A28),\"0\")","v":0},{"$error":"#N/A"},{"$error":"#N/A"},"Moderate Intellectual Disability (0)",{"$f":"IFERROR(COUNTIFS(Data!G2:G1000000,A2,Data!AO2:AO1000000,A6,Data!AT2:AT1000000,A10,Data!Y2:Y1000000,A34),\"0\")","v":0},{"$error":"#N/A"},{"$error":"#N/A"},null,null,null,null,null,null,{"$f":"$A$78&\"\" &\" (\"&O25&\")\"","v":"Higher Education (0)"},null,{"$f":"$A$78&\"\" &\" (\"&W66&\")\"","v":"Higher Education (0)"}]
[{"$f":"A18&\" Respondents\" &\" (\"&O5&\")\"","v":"Specific Learning Disability Respondents (0)"},null,null,null,null,null,null,null,null,null,null,null,null,null,null,null,null,null,null,null,null,"Moderate Intellectual Disability (0)",{"$f":"IFERROR(COUNTIFS(Data!G2:G1000000,A2,Data!AO2:AO1000000,A6,Data!AT2:AT1000000,A11,Data!Y2:Y1000000,A34),\"0\")","v":0},{"$error":"#N/A"},{"$error":"#N/A"},null,null,null,null,null,null,{"$f":"$B$8&\"\" &\" (\"&O26&\")\"","v":"Competitive Employment (0)"},null,{"$f":"$B$8&\"\" &\" (\"&W67&\")\"","v":"Competitive Employment (0)"}]
[{"$f":"\"Aged Out Respondents\" &\" (\"&K2&\")\"","v":"Aged Out Respondents (0)"},null,null,null,null,null,null,null,null,null,null,null,null,null,null,null,null,null,null,null,null,"Moderate Intellectual Disability (0)",{"$f":"IFERROR(COUNTIFS(Data!G2:G1000000,A2,Data!AO2:AO1000000,A6,Data!AT2:AT1000000,A12,Data!Y2:Y1000000,A34),\"0\")","v":0},{"$error":"#N/A"},{"$error":"#N/A"},null,null,null,null,null,null,{"$f":"$A$80&\"\" &\" (\"&O27&\")\"","v":"Other Postsecondary Education or Training (0)"},null,{"$f":"$A$80&\"\" &\" (\"&W68&\")\"","v":"Other Postsecondary Education or Training (0)"}]
[{"$f":"A20&\" Respondents\" &\" (\"&K3&\")\"","v":"Dropped Out Respondents (0)"},null,null,null,null,null,null,null,null,null,null,null,null,null,null,null,null,null,null,null,null,null,null,null,null,null,null,null,null,null,null,{"$f":"$A$81&\"\" &\" (\"&O28&\")\"","v":"Other Employment (0)"},null,{"$f":"$A$81&\"\" &\" (\"&W69&\")\"","v":"Other Employment (0)"}]
[{"$f":"A21&\" Respondents\" &\" (\"&K4&\")\"","v":"Graduated Respondents (0)"},null,null,null,null,null,null,null,null,null,null,null,null,null,null,null,null,null,null,null,null,{"$f":"$A$35&\" (\"&W54&\")\"","v":"Multiple Disabilities (0)"},{"$f":"IFERROR(COUNTIFS(Data!G2:G1000000,A2,Data!AO2:AO1000000,A6,Data!AT2:AT1000000,A8,Data!Y2:Y1000000,A35),\"0\")","v":0},{"$error":"#N/A"},{"$error":"#N/A"},null,null,null,null,null,null,{"$f":"$B$11&\"\" &\" (\"&O29&\")\"","v":"Not Engaged (0)"},null,{"$f":"$B$11&\"\" &\" (\"&W70&\")\"","v":"Not Engaged (0)"}]
[{"$f":"A22&\" Respondents\" &\" (\"&S2&\")\"","v":"American Indian or Alaskan Native Respondents (0)"},null,null,null,null,null,null,null,null,null,null,null,null,null,null,null,null,null,null,null,null,{"$f":"$A$35&\" (\"&W55&\")\"","v":"Multiple Disabilities (0)"},{"$f":"IFERROR(COUNTIFS(Data!G2:G1000000,A2,Data!AO2:AO1000000,A6,Data!AT2:AT1000000,A9,Data!Y2:Y1000000,A35),\"0\")","v":0},{"$error":"#N/A"},{"$error":"#N/A"},null,null,null,null,null,null,null,null,"Other Health Impairment"]
["Asian Respondents (0)",null,null,null,null,null,null,null,null,null,null,null,null,null,null,null,null,null,null,null,null,"Multiple Disabilities (0)",{"$f":"IFERROR(COUNTIFS(Data!G2:G1000000,A2,Data!AO2:AO1000000,A6,Data!AT2:AT1000000,A10,Data!Y2:Y1000000,A35),\"0\")","v":0},{"$error":"#N/A"},{"$error":"#N/A"},null,null,null,null,null,null,null,null,{"$f":"$A$78&\"\" &\" (\"&W72&\")\"","v":"Higher Education (0)"}]
["Black or African American Respondents (0)",null,null,null,null,null,null,null,null,null,null,null,null,null,null,null,null,null,null,null,null,"Multiple Disabilities (0)",{"$f":"IFERROR(COUNTIFS(Data!G2:G1000000,A2,Data!AO2:AO1000000,A6,Data!AT2:AT1000000,A11,Data!Y2:Y1000000,A35),\"0\")","v":0},{"$error":"#N/A"},{"$error":"#N/A"},null,null,null,null,null,null,null,null,{"$f":"$B$8&\"\" &\" (\"&W73&\")\"","v":"Competitive Employment (0)"}]
["Hispanic or Latino Respondents (0)",null,null,null,null,null,null,null,null,null,null,null,null,null,null,null,null,null,null,null,null,"Multiple Disabilities (0)",{"$f":"IFERROR(COUNTIFS(Data!G2:G1000000,A2,Data!AO2:AO1000000,A6,Data!AT2:AT1000000,A12,Data!Y2:Y1000000,A35),\"0\")","v":0},{"$error":"#N/A"},{"$error":"#N/A"},null,null,null,null,null,null,null,null,{"$f":"$A$80&\"\" &\" (\"&W74&\")\"","v":"Other Postsecondary Education or Training (0)"}]
["Multi-Racial Respondents (0)",null,null,null,null,null,null,null,null,null,null,null,null,null,null,null,null,null,null,null,null,null,null,null,null,null,null,null,null,null,null,null,null,{"$f":"$A$81&\"\" &\" (\"&W75&\")\"","v":"Other Employment (0)"}]
["Native Hawaiian or Other Pacific Islander Respondents (0)",null,null,null,null,null,null,null,null,null,null,null,null,null,null,null,null,null,null,null,null,{"$f":"$A$36&\" (\"&W60&\")\"","v":"Multiple Disabilities - Severe Sensory Impairment (0)"},{"$f":"IFERROR(COUNTIFS(Data!G2:G1000000,A2,Data!AO2:AO1000000,A6,Data!AT2:AT1000000,A8,Data!Y2:Y1000000,A36),\"0\")","v":0},{"$error":"#N/A"},{"$error":"#N/A"},null,null,null,null,null,null,null,null,{"$f":"$B$11&\"\" &\" (\"&W76&\")\"","v":"Not Engaged (0)"}]
["White Respondents (0)",null,null,null,null,null,null,null,null,null,null,null,null,null,null,null,null,null,null,null,null,{"$f":"$A$36&\" (\"&W61&\")\"","v":"Multiple Disabilities - Severe Sensory Impairment (0)"},{"$f":"IFERROR(COUNTIFS(Data!G2:G1000000,A2,Data!AO2:AO1000000,A6,Data!AT2:AT1000000,A9,Data!Y2:Y1000000,A36),\"0\")","v":0},{"$error":"#N/A"},{"$error":"#N/A"},null,null,null,null,null,null,null,null,"Severe Intellectual Disability"]
[{"$f":"A29&\" Respondents\" &\" (\"&W2&\")\"","v":"Autism Respondents (0)"},null,null,null,null,null,null,null,null,null,null,null,null,null,null,null,null,null,null,null,null,"Multiple Disabilities - Severe Sensory Impairment (0)",{"$f":"IFERROR(COUNTIFS(Data!G2:G1000000,A2,Data!AO2:AO1000000,A6,Data!AT2:AT1000000,A10,Data!Y2:Y1000000,A36),\"0\")","v":0},{"$error":"#N/A"},{"$error":"#N/A"},null,null,null,null,null,null,null,null,{"$f":"$A$78&\"\" &\" (\"&W78&\")\"","v":"Higher Education (0)"}]
["Emotional Disability Respondents (0)",null,null,null,null,null,null,null,null,null,null,null,null,null,null,null,null,null,null,null,null,"Multiple Disabilities - Severe Sensory Impairment (0)",{"$f":"IFERROR(COUNTIFS(Data!G2:G1000000,A2,Data!AO2:AO1000000,A6,Data!AT2:AT1000000,A11,Data!Y2:Y1000000,A36),\"0\")","v":0},{"$error":"#N/A"},{"$error":"#N/A"},null,null,null,null,null,null,null,null,{"$f":"$B$8&\"\" &\" (\"&W79&\")\"","v":"Competitive Employment (0)"}]
["Emotional Disability (separate facility, private school) Respondents (0)",null,null,null,null,null,null,null,null,null,null,null,null,null,null,null,null,null,null,null,null,"Multiple Disabilities - Severe Sensory Impairment (0)",{"$f":"IFERROR(COUNTIFS(Data!G2:G1000000,A2,Data!AO2:AO1000000,A6,Data!AT2:AT1000000,A12,Data!Y2:Y1000000,A36),\"0\")","v":0},{"$error":"#N/A"},{"$error":"#N/A"},null,null,null,null,null,null,null,null,{"$f":"$A$80&\"\" &\" (\"&W80&\")\"","v":"Other Postsecondary Education or Training (0)"}]
["Hearing Impairment Respondents (0)",null,null,null,null,null,null,null,null,null,null,null,null,null,null,null,null,null,null,null,null,null,null,null,null,null,null,null,null,null,null,null,null,{"$f":"$A$81&\"\" &\" (\"&W81&\")\"","v":"Other Employment (0)"}]
["Mild Intellectual Disability Respondents (0)",null,null,null,null,null,null,null,null,null,null,null,null,null,null,null,null,null,null,null,null,{"$f":"$A$37&\" (\"&W66&\")\"","v":"Orthopedic Impairment (0)"},{"$f":"IFERROR(COUNTIFS(Data!G2:G1000000,A2,Data!AO2:AO1000000,A6,Data!AT2:AT1000000,A8,Data!Y2:Y1000000,A37),\"0\")","v":0},{"$error":"#N/A"},{"$error":"#N/A"},null,null,null,null,null,null,null,null,{"$f":"$B$11&\"\" &\" (\"&W82&\")\"","v":"Not Engaged (0)"}]
["Moderate Intellectual Disability Respondents (0)",null,null,null,null,null,null,null,null,null,null,null,null,null,null,null,null,null,null,null,null,{"$f":"$A$37&\" (\"&W67&\")\"","v":"Orthopedic Impairment (0)"},{"$f":"IFERROR(COUNTIFS(Data!G2:G1000000,A2,Data!AO2:AO1000000,A6,Data!AT2:AT1000000,A9,Data!Y2:Y1000000,A37),\"0\")","v":0},{"$f":"IFERROR(W67/$C$5,#N/A)","v":{"$error":"#N/A"}},{"$f":"IFERROR(W67/$C$5,#N/A)","v":{"$error":"#N/A"}},null,null,null,null,null,null,null,null,"Specific Learning Disability"]
["Multiple Disabilities Respondents (0)",null,null,null,null,null,null,null,null,null,null,null,null,null,null,null,null,null,null,null,null,"Orthopedic Impairment (0)",{"$f":"IFERROR(COUNTIFS(Data!G2:G1000000,A2,Data!AO2:AO1000000,A6,Data!AT2:AT1000000,A10,Data!Y2:Y1000000,A37),\"0\")","v":0},{"$error":"#N/A"},{"$error":"#N/A"},null,null,null,null,null,null,null,null,{"$f":"$A$78&\"\" &\" (\"&W84&\")\"","v":"Higher Education (0)"}]
["Multiple Disabilities - Severe Sensory Impairment Respondents (0)",null,null,null,null,null,null,null,null,null,null,null,null,null,null,null,null,null,null,null,null,"Orthopedic Impairment (0)",{"$f":"IFERROR(COUNTIFS(Data!G2:G1000000,A2,Data!AO2:AO1000000,A6,Data!AT2:AT1000000,A11,Data!Y2:Y1000000,A37),\"0\")","v":0},{"$error":"#N/A"},{"$error":"#N/A"},null,null,null,null,null,null,null,null,{"$f":"$B$8&\"\" &\" (\"&W85&\")\"","v":"Competitive Employment (0)"}]
["Orthopedic Impairment Respondents (0)",null,null,null,null,null,null,null,null,null,null,null,null,null,null,null,null,null,null,null,null,"Orthopedic Impairment (0)",{"$f":"IFERROR(COUNTIFS(Data!G2:G1000000,A2,Data!AO2:AO1000000,A6,Data!AT2:AT1000000,A12,Data!Y2:Y1000000,A37),\"0\")","v":0},{"$error":"#N/A"},{"$error":"#N/A"},null,null,null,null,null,null,null,null,{"$f":"$A$80&\"\" &\" (\"&W86&\")\"","v":"Other Postsecondary Education or Training (0)"}]
["Other Health Impairment Respondents (0)",null,null,null,null,null,null,null,null,null,null,null,null,null,null,null,null,null,null,null,null,null,null,null,null,null,null,null,null,null,null,null,null,{"$f":"$A$81&\"\" &\" (\"&W87&\")\"","v":"Other Employment (0)"}]
["Severe Intellectual Disability Respondents (0)",null,null,null,null,null,null,null,null,null,null,null,null,null,null,null,null,null,null,null,null,{"$f":"$A$38&\" (\"&W72&\")\"","v":"Other Health Impairment (0)"},{"$f":"IFERROR(COUNTIFS(Data!G2:G1000000,A2,Data!AO2:AO1000000,A6,Data!AT2:AT1000000,A8,Data!Y2:Y1000000,A38),\"0\")","v":0},{"$error":"#N/A"},{"$error":"#N/A"},null,null,null,null,null,null,null,null,{"$f":"$B$11&\"\" &\" (\"&W88&\")\"","v":"Not Engaged (0)"}]
["Specific Learning Disability Respondents (0)",null,null,null,null,null,null,null,null,null,null,null,null,null,null,null,null,null,null,null,null,{"$f":"$A$38&\" (\"&W73&\")\"","v":"Other Health Impairment (0)"},{"$f":"IFERROR(COUNTIFS(Data!G2:G1000000,A2,Data!AO2:AO1000000,A6,Data!AT2:AT1000000,A9,Data!Y2:Y1000000,A38),\"0\")","v":0},{"$error":"#N/A"},{"$error":"#N/A"},null,null,null,null,null,null,null,null,"Speech/Language Impairment"]
[{"$f":"B41&\" Respondents\" &\" (\"&W14&\")\"","v":"Speech/Language Impairment Respondents (0)"},null,null,null,null,null,null,null,null,null,null,null,null,null,null,null,null,null,null,null,null,"Other Health Impairment (0)",{"$f":"IFERROR(COUNTIFS(Data!G2:G1000000,A2,Data!AO2:AO1000000,A6,Data!AT2:AT1000000,A10,Data!Y2:Y1000000,A38),\"0\")","v":0},{"$error":"#N/A"},{"$error":"#N/A"},null,null,null,null,null,null,null,null,{"$f":"$A$78&\"\" &\" (\"&W90&\")\"","v":"Higher Education (0)"}]
["Traumatic Brain Injury Respondents (0)",null,null,null,null,null,null,null,null,null,null,null,null,null,null,null,null,null,null,null,null,"Other Health Impairment (0)",{"$f":"IFERROR(COUNTIFS(Data!G2:G1000000,A2,Data!AO2:AO1000000,A6,Data!AT2:AT1000000,A11,Data!Y2:Y1000000,A38),\"0\")","v":0},{"$error":"#N/A"},{"$error":"#N/A"},null,null,null,null,null,null,null,null,{"$f":"$B$8&\"\" &\" (\"&W91&\")\"","v":"Competitive Employment (0)"}]
["Visual Impairment Respondents (0)",null,null,null,null,null,null,null,null,null,null,null,null,null,null,null,null,null,null,null,null,"Other Health Impairment (0)",{"$f":"IFERROR(COUNTIFS(Data!G2:G1000000,A2,Data!AO2:AO1000000,A6,Data!AT2:AT1000000,A12,Data!Y2:Y1000000,A38),\"0\")","v":0},{"$error":"#N/A"},{"$error":"#N/A"},null,null,null,null,null,null,null,null,{"$f":"$A$80&\"\" &\" (\"&W92&\")\"","v":"Other Postsecondary Education or Training (0)"}]
[null,null,null,null,null,null,null,null,null,null,null,null,null,null,null,null,null,null,null,null,null,null,null,null,null,null,null,null,null,null,null,null,null,{"$f":"$A$81&\"\" &\" (\"&W93&\")\"","v":"Other Employment (0)"}]
["Higher Education",null,null,null,null,null,null,null,null,null,null,null,null,null,null,null,null,null,null,null,null,{"$f":"$A$39&\" (\"&W78&\")\"","v":"Severe Intellectual Disability (0)"},{"$f":"IFERROR(COUNTIFS(Data!G2:G1000000,A2,Data!AO2:AO1000000,A6,Data!AT2:AT1000000,A8,Data!Y2:Y1000000,A39),\"0\")","v":0},{"$error":"#N/A"},{"$error":"#N/A"},null,null,null,null,null,null,null,null,{"$f":"$B$11&\"\" &\" (\"&W94&\")\"","v":"Not Engaged (0)"}]
["Competitive Employment",null,null,null,null,null,null,null,null,null,null,null,null,null,null,null,null,null,null,null,null,{"$f":"$A$39&\" (\"&W79&\")\"","v":"Severe Intellectual Disability (0)"},{"$f":"IFERROR(COUNTIFS(Data!G2:G1000000,A2,Data!AO2:AO1000000,A6,Data!AT2:AT1000000,A9,Data!Y2:Y1000000,A39),\"0\")","v":0},{"$error":"#N/A"},{"$error":"#N/A"},null,null,null,null,null,null,null,null,"Traumatic Brain Injury"]
["Other Postsecondary Education or Training",null,null,null,null,null,null,null,null,null,null,null,null,null,null,null,null,null,null,null,null,"Severe Intellectual Disability (0)",{"$f":"IFERROR(COUNTIFS(Data!G2:G1000000,A2,Data!AO2:AO1000000,A6,Data!AT2:AT1000000,A10,Data!Y2:Y1000000,A39),\"0\")","v":0},{"$error":"#N/A"},{"$error":"#N/A"},null,null,null,null,null,null,null,null,{"$f":"$A$78&\"\" &\" (\"&W96&\")\"","v":"Higher Education (0)"}]
["Other Employment",null,null,null,null,null,null,null,null,null,null,null,null,null,null,null,null,null,null,null,null,"Severe Intellectual Disability (0)",{"$f":"IFERROR(COUNTIFS(Data!G2:G1000000,A2,Data!AO2:AO1000000,A6,Data!AT2:AT1000000,A11,Data!Y2:Y1000000,A39),\"0\")","v":0},{"$error":"#N/A"},{"$error":"#N/A"},null,null,null,null,null,null,null,null,{"$f":"$B$8&\"\" &\" (\"&W97&\")\"","v":"Competitive Employment (0)"}]
["Not Engaged",null,null,null,null,null,null,null,null,null,null,null,null,null,null,null,null,null,null,null,null,"Severe Intellectual Disability (0)",{"$f":"IFERROR(COUNTIFS(Data!G2:G1000000,A2,Data!AO2:AO1000000,A6,Data!AT2:AT1000000,A12,Data!Y2:Y1000000,A39),\"0\")","v":0},{"$error":"#N/A"},{"$error":"#N/A"},null,null,null,null,null,null,null,null,{"$f":"$A$80&\"\" &\" (\"&W98&\")\"","v":"Other Postsecondary Education or Training (0)"}]
[null,null,null,null,null,null,null,null,null,null,null,null,null,null,null,null,null,null,null,null,null,null,null,null,null,null,null,null,null,null,null,null,null,{"$f":"$A$81&\"\" &\" (\"&W99&\")\"","v":"Other Employment (0)"}]
[null,null,null,null,null,null,null,null,null,null,null,null,null,null,null,null,null,null,null,null,null,{"$f":"$A$40&\" (\"&W84&\")\"","v":"Specific Learning Disability (0)"},{"$f":"IFERROR(COUNTIFS(Data!G2:G1000000,A2,Data!AO2:AO1000000,A6,Data!AT2:AT1000000,A8,Data!Y2:Y1000000,A40),\"0\")","v":0},{"$error":"#N/A"},{"$error":"#N/A"},null,null,null,null,null,null,null,null,{"$f":"$B$11&\"\" &\" (\"&W100&\")\"","v":"Not Engaged (0)"}]
[null,null,null,null,null,null,null,null,null,null,null,null,null,null,null,null,null,null,null,null,null,{"$f":"$A$40&\" (\"&W85&\")\"","v":"Specific Learning Disability (0)"},{"$f":"IFERROR(COUNTIFS(Data!G2:G1000000,A2,Data!AO2:AO1000000,A6,Data!AT2:AT1000000,A9,Data!Y2:Y1000000,A40),\"0\")","v":0},{"$error":"#N/A"},{"$error":"#N/A"},null,null,null,null,null,null,null,null,"Visual Impairment"]
[null,null,null,null,null,null,null,null,null,null,null,null,null,null,null,null,null,null,null,null,null,"Specific Learning Disability (0)",{"$f":"IFERROR(COUNTIFS(Data!G2:G1000000,A2,Data!AO2:AO1000000,A6,Data!AT2:AT1000000,A10,Data!Y2:Y1000000,A40),\"0\")","v":0},{"$error":"#N/A"},{"$error":"#N/A"},null,null,null,null,null,null,null,null,{"$f":"$A$78&\"\" &\" (\"&W102&\")\"","v":"Higher Education (0)"}]
[null,null,null,null,null,null,null,null,null,null,null,null,null,null,null,null,null,null,null,null,null,"Specific Learning Disability (0)",{"$f":"IFERROR(COUNTIFS(Data!G2:G1000000,A2,Data!AO2:AO1000000,A6,Data!AT2:AT1000000,A11,Data!Y2:Y1000000,A40),\"0\")","v":0},{"$error":"#N/A"},{"$error":"#N/A"},null,null,null,null,null,null,null,null,{"$f":"$B$8&\"\" &\" (\"&W103&\")\"","v":"Competitive Employment (0)"}]
[null,null,null,null,null,null,null,null,null,null,null,null,null,null,null,null,null,null,null,null,null,"Specific Learning Disability (0)",{"$f":"IFERROR(COUNTIFS(Data!G2:G1000000,A2,Data!AO2:AO1000000,A6,Data!AT2:AT1000000,A12,Data!Y2:Y1000000,A40),\"0\")","v":0},{"$error":"#N/A"},{"$error":"#N/A"},null,null,null,null,null,null,null,null,{"$f":"$A$80&\"\" &\" (\"&W104&\")\"","v":"Other Postsecondary Education or Training (0)"}]
[null,null,null,null,null,null,null,null,null,null,null,null,null,null,null,null,null,null,null,null,null,null,null,null,null,null,null,null,null,null,null,null,null,{"$f":"$A$81&\"\" &\" (\"&W105&\")\"","v":"Other Employment (0)"}]
[null,null,null,null,null,null,null,null,null,null,null,null,null,null,null,null,null,null,null,null,null,{"$f":"$A$41&\" (\"&W90&\")\"","v":"Speech/Language Impairment (FY 2010 absorbed PSL) (0)"},{"$f":"IFERROR(COUNTIFS(Data!G2:G1000000,A2,Data!AO2:AO1000000,A6,Data!AT2:AT1000000,A8,Data!Y2:Y1000000,A41),\"0\")","v":0},{"$error":"#N/A"},{"$error":"#N/A"},null,null,null,null,null,null,null,null,{"$f":"$B$11&\"\" &\" (\"&W106&\")\"","v":"Not Engaged (0)"}]
[null,null,null,null,null,null,null,null,null,null,null,null,null,null,null,null,null,null,null,null,null,{"$f":"$A$41&\" (\"&W91&\")\"","v":"Speech/Language Impairment (FY 2010 absorbed PSL) (0)"},{"$f":"IFERROR(COUNTIFS(Data!G2:G1000000,A2,Data!AO2:AO1000000,A6,Data!AT2:AT1000000,A9,Data!Y2:Y1000000,A41),\"0\")","v":0},{"$error":"#N/A"},{"$error":"#N/A"}]
[null,null,null,null,null,null,null,null,null,null,null,null,null,null,null,null,null,null,null,null,null,"Speech/Language Impairment (FY 2010 absorbed PSL) (0)",{"$f":"IFERROR(COUNTIFS(Data!G2:G1000000,A2,Data!AO2:AO1000000,A6,Data!AT2:AT1000000,A10,Data!Y2:Y1000000,A41),\"0\")","v":0},{"$error":"#N/A"},{"$error":"#N/A"}]
[null,null,null,null,null,null,null,null,null,null,null,null,null,null,null,null,null,null,null,null,null,"Speech/Language Impairment (FY 2010 absorbed PSL) (0)",{"$f":"IFERROR(COUNTIFS(Data!G2:G1000000,A2,Data!AO2:AO1000000,A6,Data!AT2:AT1000000,A11,Data!Y2:Y1000000,A41),\"0\")","v":0},{"$error":"#N/A"},{"$error":"#N/A"}]
[null,null,null,null,null,null,null,null,null,null,null,null,null,null,null,null,null,null,null,null,null,"Speech/Language Impairment (FY 2010 absorbed PSL) (0)",{"$f":"IFERROR(COUNTIFS(Data!G2:G1000000,A2,Data!AO2:AO1000000,A6,Data!AT2:AT1000000,A12,Data!Y2:Y1000000,A41),\"0\")","v":0},{"$error":"#N/A"},{"$error":"#N/A"}]
[]
[null,null,null,null,null,null,null,null,null,null,null,null,null,null,null,null,null,null,null,null,null,{"$f":"$A$42&\" (\"&W96&\")\"","v":"Traumatic Brain Injury (0)"},{"$f":"IFERROR(COUNTIFS(Data!G2:G1000000,A2,Data!AO2:AO1000000,A6,Data!AT2:AT1000000,A8,Data!Y2:Y1000000,A42),\"0\")","v":0},{"$error":"#N/A"},{"$error":"#N/A"}]
[null,null,null,null,null,null,null,null,null,null,null,null,null,null,null,null,null,null,null,null,null,{"$f":"$A$42&\" (\"&W97&\")\"","v":"Traumatic Brain Injury (0)"},{"$f":"IFERROR(COUNTIFS(Data!G2:G1000000,A2,Data!AO2:AO1000000,A6,Data!AT2:AT1000000,A9,Data!Y2:Y1000000,A42),\"0\")","v":0},{"$error":"#N/A"},{"$error":"#N/A"}]
[null,null,null,null,null,null,null,null,null,null,null,null,null,null,null,null,null,null,null,null,null,"Traumatic Brain Injury (0)",{"$f":"IFERROR(COUNTIFS(Data!G2:G1000000,A2,Data!AO2:AO1000000,A6,Data!AT2:AT1000000,A10,Data!Y2:Y1000000,A42),\"0\")","v":0},{"$error":"#N/A"},{"$error":"#N/A"}]
[null,null,null,null,null,null,null,null,null,null,null,null,null,null,null,null,null,null,null,null,null,"Traumatic Brain Injury (0)",{"$f":"IFERROR(COUNTIFS(Data!G2:G1000000,A2,Data!AO2:AO1000000,A6,Data!AT2:AT1000000,A11,Data!Y2:Y1000000,A42),\"0\")","v":0},{"$error":"#N/A"},{"$error":"#N/A"}]
[null,null,null,null,null,null,null,null,null,null,null,null,null,null,null,null,null,null,null,null,null,"Traumatic Brain Injury (0)",{"$f":"IFERROR(COUNTIFS(Data!G2:G1000000,A2,Data!AO2:AO1000000,A6,Data!AT2:AT1000000,A12,Data!Y2:Y1000000,A42),\"0\")","v":0},{"$error":"#N/A"},{"$error":"#N/A"}]
[]
[null,null,null,null,null,null,null,null,null,null,null,null,null,null,null,null,null,null,null,null,null,{"$f":"$A$43&\" (\"&W102&\")\"","v":"Visual Impairment (0)"},{"$f":"IFERROR(COUNTIFS(Data!G2:G1000000,A2,Data!AO2:AO1000000,A6,Data!AT2:AT1000000,A8,Data!Y2:Y1000000,A43),\"0\")","v":0},{"$error":"#N/A"},{"$error":"#N/A"}]
[null,null,null,null,null,null,null,null,null,null,null,null,null,null,null,null,null,null,null,null,null,{"$f":"$A$43&\" (\"&W103&\")\"","v":"Visual Impairment (0)"},{"$f":"IFERROR(COUNTIFS(Data!G2:G1000000,A2,Data!AO2:AO1000000,A6,Data!AT2:AT1000000,A9,Data!Y2:Y1000000,A43),\"0\")","v":0},{"$error":"#N/A"},{"$error":"#N/A"}]
[null,null,null,null,null,null,null,null,null,null,null,null,null,null,null,null,null,null,null,null,null,"Visual Impairment (0)",{"$f":"IFERROR(COUNTIFS(Data!G2:G1000000,A2,Data!AO2:AO1000000,A6,Data!AT2:AT1000000,A10,Data!Y2:Y1000000,A43),\"0\")","v":0},{"$error":"#N/A"},{"$error":"#N/A"}]
[null,null,null,null,null,null,null,null,null,null,null,null,null,null,null,null,null,null,null,null,null,"Visual Impairment (0)",{"$f":"IFERROR(COUNTIFS(Data!G2:G1000000,A2,Data!AO2:AO1000000,A6,Data!AT2:AT1000000,A11,Data!Y2:Y1000000,A43),\"0\")","v":0},{"$error":"#N/A"},{"$error":"#N/A"}]
[null,null,null,null,null,null,null,null,null,null,null,null,null,null,null,null,null,null,null,null,null,"Visual Impairment (0)",{"$f":"IFERROR(COUNTIFS(Data!G2:G1000000,A2,Data!AO2:AO1000000,A6,Data!AT2:AT1000000,A12,Data!Y2:Y1000000,A43),\"0\")","v":0},{"$error":"#N/A"},{"$error":"#N/A"}]